{"text_format":"1","workbook":"xlsx","n_sheets":16,"sheets":["Introduction","Elderly population","Social cohesion","Social alienation","Inequalities","interactions","Climate change - air pollution","Climate change - flooding","Health","Community integration","ScoresRSQ","Public unrest","Critical infrastructure","Comments","Priorities","Answers"],"not_rendered":{"charts":0,"images":2,"macros":1,"external_links":0,"defined_names":1364,"comments":0,"pivot_tables":0},"unopened":[],"bounds":{"document_bytes":16777216,"sheet_cells":100000,"rows_first":2000,"rows_last":500,"rows_between":2000,"halvings":0,"cell_chars":16384,"cell_head_chars":4096},"cells_cut":0,"cells_raw":0,"read":"whole","date_system":"1900"}

{"sheet":"Introduction","index":0,"n_rows":24,"n_cols":3,"rows_kept":24,"cut":false,"hidden":false,"merged":[[10,4,10,8],[11,4,11,8],[12,4,12,8]]}
[]
[]
[]
[]
[]
[]
[null,null,"RISK SYSTEMICITY QUESTIONNAIRE"]
[null,null,"A city resilience tool developed as part of the Smart Mature Resilience project"]
[]
[null,null,"PLEASE COMPLETE YOUR DETAILS AS BELOW (where applicable)"]
[null,null,"YOUR NAME:"]
[null,null,"GROUP NAME:"]
[null,null,"DATES OF COMPLETION:"]
[]
[null,null,"Please enable macros in your copy of Excel"]
[null,null,"Then, choose which risk topics you wish to consider from the 10 tabs shown at the bottom of this sheet."]
[null,null,"Click on your chosen tab then answer the questions presented on the sheet"]
[]
[null,null,"You can enable Macros by following this simple procedure:"]
[null,null,"1) Click on FILE in the top-left corner and "]
[null,null,"2) Select OPTIONS"]
[null,null,"3) Click on TRUST CENTRE'under Excel OPTIONS "]
[null,null,"4) Click on MACRO SETTINGS"]
[null,null,"5) Tick ENABLE ALL MACROS under MACRO SETTINGS"]

{"sheet":"Elderly population","index":1,"n_rows":108,"n_cols":5,"rows_kept":108,"cut":false,"hidden":false,"merged":[[106,0,106,4],[95,0,95,4],[76,0,76,4],[83,0,83,4],[86,0,86,4],[92,0,92,4],[8,0,8,4],[16,0,16,4],[19,0,19,4],[66,0,66,4],[73,0,73,4],[58,0,58,4],[63,0,63,4],[48,0,48,4],[55,0,55,4],[45,0,45,4],[25,0,25,4],[28,0,28,4],[35,0,35,4],[38,0,38,4],[0,0,0,4],[3,0,3,4],[4,0,4,4],[5,0,5,4],[1,0,1,4]]}
["Topic: Elderly population"]
["Maximum number of scenarios in this tab: 10"]
["HOW LIKELY DO YOU THINK THIS SCENARIO WILL DEVELOP IN YOUR CITY/REGION AND/OR IS A CONCERN TO YOUR PROJECT?"]
["\"AGEING POPULATION\""]
["Please respond to this scenario by double clicking one of the answers below:"]
["Is your city likely to be subject to increasing elderly population?"]
["Highly probable (>60%)","Probable/Possible (20-60%)","Improbable (<20%)","We don't know","I don't know - someone else does"]
[]
["Scenario 1: \"PENSION AGE\""]
["later retirement ages means pensions come later in life and"]
["elderly citizens working longer which means"]
["role strain between caring for aged friends and partners, and the need to remain in employment causing"]
["increasing work-related stress for aged citizens and"]
["an increase in breakdown of the family structure AND/OR poorer quality of life for the elderly poor leading to"]
["increased social alienation and loneliness for the aged citizens and so"]
["reducing social cohesion in the city"]
["HOW LIKELY DO YOU THINK THIS SCENARIO WILL DEVELOP IN YOUR CITY/REGION?"]
["Highly probable","Probable/Possible ","Improbable ","We don't know","I don't know - someone else does"]
[]
["Scenario 2: \"FAMILY MEMBERS CO-LOCATION\" - causal chain"]
["families are increasingly living far away from one another leading to"]
["isolation risks of the elderly AND/OR breakdown of the family structure causing"]
["isolation and loneliness leading to "]
["increased social alienation and"]
["reduced social cohesion"]
["HOW LIKELY DO YOU THINK THIS SCENARIO WILL DEVELOP IN YOUR CITY/REGION?"]
["Highly probable","Probable/Possible ","Improbable ","We don't know","I don't know - someone else does"]
[]
["Scenario 3: \"SINGLE HOUSEHOLDS\" - causal chain"]
["family members increasingly living far away from one another AND/OR parents separate leads to"]
["personalisation and individualisation of people's lifestyles in the modern age causing "]
["continued increase in single households and so"]
["isolation and loneliness of working age people from their communities and family, including elderly family, with"]
["a continuing loss of neighbourhood feeling and"]
["increasing loneliness of the elderly"]
["HOW LIKELY DO YOU THINK THIS SCENARIO WILL DEVELOP IN YOUR CITY/REGION?"]
["Highly probable","Probable/Possible ","Improbable ","We don't know","I don't know - someone else does"]
[]
["Scenario 4: \"AGED CITIZENS' FEAR OF CRIME IN THE CITY\" - vicious cycle"]
["elderly people increasingly fearful of leaving the safety of their home creates"]
["lack of meaningful common activities for the old causing"]
["elderly have a feeling of lack of purpose in the society leading to"]
["increasing loneliness and social alienation of the aged and so"]
["reduced social cohesion in the city which REINFORCES"]
["elderly people increasingly fearful of leaving the safety of their home "]
["HOW LIKELY DO YOU THINK THIS SCENARIO WILL DEVELOP IN YOUR CITY/REGION?"]
["Highly probable","Probable/Possible ","Improbable ","We don't know","I don't know - someone else does"]
[]
["Scenario 5: \"DIGITAL MARGINALISATION\" - causal chain"]
["elderly population in the city is increasing with"]
["increasing number of elderly citizens experience problems of keeping up with advancing digital technologies and social media and so"]
["elderly people feel, and become, excluded from the online networks and communities causing"]
["isolation risks and loneliness of the elderly which "]
["increases social alienation and so"]
["reducing social cohesion in the city"]
["HOW LIKELY DO YOU THINK THIS SCENARIO WILL DEVELOP IN YOUR CITY/REGION?"]
["Highly probable","Probable/Possible ","Improbable ","We don't know","I don't know - someone else does"]
[]
["Scenario 6: \"DEMENTIA AND THE ELDERLY\" - causal chain"]
["increased number of elderly suffering from Dementia causes"]
["an increased demand for social care which results in"]
["an increased cost in healthcare which results in "]
["rising health inequalities"]
["HOW LIKELY DO YOU THINK THIS SCENARIO WILL DEVELOP IN YOUR CITY/REGION?"]
["Highly probable","Probable/Possible ","Improbable ","We don't know","I don't know - someone else does"]
[]
["Scenario 7: \"MENTAL HEALTH AND LONELINESS\" - vicious cycle"]
["increase in loneliness among the elderly means"]
["increasing issues related to mental health of aged citizens leading to"]
["increase in alcohol abuse among the aged citizens AND/OR increase in long term co-morbidity and so"]
["overall increase of the aged peoples' health problems leading to"]
["poor life quality for the aged poor which REINFORCES"]
["increasing loneliness of the elderly citizens"]
["HOW LIKELY DO YOU THINK THIS SCENARIO WILL DEVELOP IN YOUR CITY/REGION AND IS A CONCERN TO YOUR PROJECT? "]
["Highly probable","Probable/Possible ","Improbable ","We don't know","I don't know - someone else does"]
[]
["Scenario 8: \"ALCOHOL ABUSE\" - vicious cycle"]
["increase in loneliness among the elderly leads to"]
["increase in alcohol abuse among the elderly means"]
["aged citizens suffering from multiple health conditions at the same time and so"]
["increasingly poor quality of life for the elderly REINFORCING"]
["increase in alcohol abuse among elderly and REINFORCES"]
["increase in loneliness among the elderly"]
["HOW LIKELY DO YOU THINK THIS SCENARIO WILL DEVELOP IN YOUR CITY/REGION?"]
["Highly probable","Probable/Possible ","Improbable ","We don't know","I don't know - someone else does"]
[]
["Scenario 9: \"HEALTHCARE UNDER PRESSURE\" - vicious cycle"]
["overall increase of the aged peoples' health problems creates"]
["a city faced with a significantly growing demand for social care and healthcare and so"]
["healthcare services are under increasing pressure causing"]
["the quality of healthcare reduced which REINFORCES"]
["overall increase of the aged peoples' health problems"]
["HOW LIKELY DO YOU THINK THIS SCENARIO WILL DEVELOP IN YOUR CITY/REGION?"]
["Highly probable","Probable/Possible ","Improbable ","We don't know","I don't know - someone else does"]
[]
["Scenario 10: \"SOCIAL WELFARE AND FAMILY SUPPORT\" - causal chain"]
["elderly population in the city is continually increasing and so"]
["number of people suffering from dementia increases causing"]
["the welfare system becoming overwhelmed leading to"]
["insufficient support for people suffering from dementia with"]
["insufficient support for the elderly and so"]
["the elderly put increasing demand on family support putting"]
["a role strain between caring for elderly friends and partners, and the need to remain in employment causing"]
["breakdown of the family structure AND/OR poor quality of life for the elderly leading to"]
["increased social alienation and loneliness for the aged citizens and"]
["reducing social cohesion in the city"]
["HOW LIKELY DO YOU THINK THIS SCENARIO WILL DEVELOP IN YOUR CITY/REGION?"]
["Highly probable","Probable/Possible ","Improbable ","We don't know","I don't know - someone else does"]

{"sheet":"Social cohesion","index":2,"n_rows":164,"n_cols":5,"rows_kept":164,"cut":false,"hidden":false,"merged":[[90,0,90,4],[105,0,105,4],[115,0,115,4],[93,0,93,4],[102,0,102,4],[153,0,153,4],[137,0,137,4],[134,0,134,4],[83,0,83,4],[29,0,29,4],[37,0,37,4],[61,0,61,4],[73,0,73,4],[80,0,80,4],[64,0,64,4],[70,0,70,4],[127,0,127,4],[118,0,118,4],[124,0,124,4],[143,0,143,4],[146,0,146,4],[156,0,156,4],[162,0,162,4],[0,0,0,4],[2,0,2,4],[1,0,1,4],[3,0,3,4],[26,0,26,4],[50,0,50,4],[40,0,40,4],[4,0,4,4],[9,0,9,4],[16,0,16,4],[19,0,19,4],[47,0,47,4],[5,0,5,4],[6,0,6,4]]}
["Topic: Social cohesion"]
["Maximum number of scenarios in this tab: 15"]
["HOW LIKELY DO YOU THINK THIS SCENARIO WILL DEVELOP IN YOUR CITY/REGION AND/OR IS A CONCERN TO YOUR PROJECT?"]
[" \"REDUCED SOCIAL COHESION\" "]
["Please respond to this scenario by double clicking one of the answers below:"]
["Is your city likely to be subject to reduction of social cohesion?"]
["HOW LIKELY DO YOU THINK THIS SCENARIO WILL DEVELOP IN YOUR CITY/REGION?"]
["Highly probable (>60%)","Probable/Possible (20-60%)","Improbable (<20%)","We don't know","I don't know - someone else does"]
[]
["Scenario 1: \"THE DISENGAGEMENT OF CITIZENS\" - causal chain"]
["increasing social and economic problems (unemployment, reduced social welfare) leads to"]
["loss of trust in the national government and local public/social services which means"]
["decreased participation in civil society (e.g. civil initiatives, voting, joining political parties) leading to"]
["increasing citizens' loneliness and so"]
["increased social alienation within the city with"]
["reduced social cohesion in the city"]
["HOW LIKELY DO YOU THINK THIS SCENARIO WILL DEVELOP IN YOUR CITY/REGION?"]
["Highly probable","Probable/Possible ","Improbable ","We don't know","I don't know - someone else does"]
[]
["Scenario 2: \"PARTICIPATION IN CIVIL SOCIETY\" - causal chain"]
["increased marginalisation of the poor within the city and/or the economic system working for some but not others creates"]
["rising social inequalities which promotes"]
["the return of 'extreme' political parties and"]
["loss of trust in national government leading to"]
["decreased participation in civil society (e.g. civil initiatives, voting, joining political parties) causing"]
["reduced social cohesion"]
["HOW LIKELY DO YOU THINK THIS SCENARIO WILL DEVELOP IN YOUR CITY/REGION?"]
["Highly probable","Probable/Possible ","Improbable ","We don't know","I don't know - someone else does"]
[]
["Scenario 3: \"PENSION AGE\" - causal chain"]
["pension rights come later in life (later retirement age with possibly lower pensions) means that"]
["ageing citizens working longer and so there is"]
["increasing role strain between caring for aged friends and partners, and the need to remain in employment with"]
["increasing work-related stress for aged citizens leading to an"]
["increase in breakdown of the family structure AND/OR poorer quality of life for the aged poor which means"]
["increased social alienation and loneliness for the aged citizens and so"]
["reducing social cohesion in the city"]
["HOW LIKELY DO YOU THINK THIS SCENARIO WILL DEVELOP IN YOUR CITY/REGION?"]
["Highly probable","Probable/Possible ","Improbable ","We don't know","I don't know - someone else does"]
[]
["Scenario 4: \"DIGITAL MARGINALISATION\" - causal chain"]
["elderly population in the city is increasing with"]
["increasing number of elderly citizens experience problems of keeping up with advancing digital technologies & social media & so"]
["elderly people feel, and become, excluded from the online networks and communities causing"]
["isolation risks and loneliness of the elderly which "]
["increases social alienation and so"]
["reducing social cohesion in the city"]
["HOW LIKELY DO YOU THINK THIS SCENARIO WILL DEVELOP IN YOUR CITY/REGION?"]
["Highly probable","Probable/Possible ","Improbable ","We don't know","I don't know - someone else does"]
[]
["Scenario 5: \"SOCIAL WELFARE AND FAMILY SUPPORT\" - causal chain"]
["elderly population in the city is continually increasing and so"]
["number of people suffering from dementia increases causing"]
["the welfare system becoming overwhelmed leading to"]
["insufficient support for people suffering from dementia with"]
["insufficient support for the elderly and so"]
["the elderly put increasing demand on family support putting"]
["a role strain between caring for elderly friends and partners, and the need to remain in employment causing"]
["breakdown of the family structure AND/OR poor quality of life for the elderly leading to"]
["increased social alienation and loneliness for the aged citizens and"]
["reducing social cohesion in the city"]
["HOW LIKELY DO YOU THINK THIS SCENARIO WILL DEVELOP IN YOUR CITY/REGION?"]
["Highly probable","Probable/Possible ","Improbable ","We don't know","I don't know - someone else does"]
[]
["Scenario 6: \"FAMILY MEMBERS CO-LOCATION\" - causal chain"]
["families are increasingly living far away from one another leading to"]
["isolation risks of the elderly AND/OR breakdown of the family structure causing"]
["isolation and loneliness leading to "]
["increased social alienation and"]
["reduced social cohesion"]
["HOW LIKELY DO YOU THINK THIS SCENARIO WILL DEVELOP IN YOUR CITY/REGION?"]
["Highly probable","Probable/Possible ","Improbable ","We don't know","I don't know - someone else does"]
[]
["Scenario 7: \"THE TRAP OF FEAR OF CRIME\" - vicious cycle"]
["reduced social cohesion creates"]
["increased violence within the city and"]
["an increasing fear of crime leading to"]
["decreasing trust between citizens and so"]
["increased social alienation of the individuals which REINFORCES"]
["reduced social cohesion"]
["HOW LIKELY DO YOU THINK THIS SCENARIO WILL DEVELOP IN YOUR CITY/REGION?"]
["Highly probable","Probable/Possible ","Improbable ","We don't know","I don't know - someone else does"]
[]
["Scenario 8: \"AGED CITIZENS' FEAR OF CRIME IN THE CITY\" - vicious cycle"]
["elderly people increasingly fearful of leaving the safety of their home creates"]
["lack of meaningful common activities for the old causing"]
["elderly have a feeling of lack of purpose in the society leading to"]
["increasing loneliness and social alienation of the aged and so"]
["reduced social cohesion in the city which REINFORCES"]
["elderly people increasingly fearful of leaving the safety of their home "]
["HOW LIKELY DO YOU THINK THIS SCENARIO WILL DEVELOP IN YOUR CITY/REGION?"]
["Highly probable","Probable/Possible ","Improbable ","We don't know","I don't know - someone else does"]
[]
["Scenario 9: \"INTEGRATION\" - vicious cycle"]
["city is subject to incoming people that is caused by either war, climate change, or economic factors causing"]
["incomers experience increasing cultural and language barriers within the city leading to"]
["incomers are subject to growing social and economic tensions and so"]
["the city faces growing problems with the integration of other nationalities causing"]
["citizens losing their trust in the management of public/social services at both national and city levels with"]
["citizens losing their trust in the national and local government and"]
["the city increasingly affected by political instability at national and EU level and so REINFORCING"]
["the city faces growing problems with the integration of other nationalities"]
["HOW LIKELY DO YOU THINK THIS SCENARIO WILL DEVELOP IN YOUR CITY/REGION?"]
["Highly probable","Probable/Possible ","Improbable ","We don't know","I don't know - someone else does"]
[]
["Scenario 10: \"INTEGRATION AND SOCIAL COHESION\" - vicious cycle"]
["extreme' political parties which oppose free movement of people between nations grows stronger and so"]
["city facing growing problems with the integration of newcomers from other nations causing"]
["some groups of incomers establishing new territories for organised crime which leads to"]
["increasing violence in the city AND/OR vulnerable people abused by organised crime and"]
["an increasing FEAR of crime which leads to"]
["incomers subject to growing social and economic tensions and so"]
["decreasing trust between citizens with the consequence of"]
["a reduction of the social cohesion between citizens which REINFORCES"]
["extreme' political parties which oppose free movement between nations growing stronger"]
["HOW LIKELY DO YOU THINK THIS SCENARIO WILL DEVELOP IN YOUR CITY/REGION?"]
["Highly probable","Probable/Possible ","Improbable ","We don't know","I don't know - someone else does"]
[]
["Scenario 11: \"PROGRESSING URBANISATION\" - causal chain"]
["increasing urbanisation leads to"]
["citizens experience continuing loss of neighbourhood feeling and"]
["increasing citizens' loneliness which leads to"]
["increasing social alienation and so"]
["reduced social cohesion"]
["HOW LIKELY DO YOU THINK THIS SCENARIO WILL DEVELOP IN YOUR CITY/REGION?"]
["Highly probable","Probable/Possible ","Improbable ","We don't know","I don't know - someone else does"]
[]
["Scenario 12: \"COMMUNITY SPACES\" - causal chain"]
["lack of attention to recreational areas in urban development planning leads to "]
["the gradual decline of communal spaces and"]
["neighbourhood decline causing"]
["continued loss of neighbourhood feeling AND/OR increasing citizens' loneliness and so"]
["increased social alienation within the city causing"]
["reduced social cohesion"]
["HOW LIKELY DO YOU THINK THIS SCENARIO WILL DEVELOP IN YOUR CITY/REGION?"]
["Highly probable","Probable/Possible ","Improbable ","We don't know","I don't know - someone else does"]
[]
["Scenario 13: \"ACCESS TO SOCIAL ACTIVITIES\" - causal chain"]
["lack of meeting points for social activities means"]
["fewer opportunities for citizens (and particularly vulnerable groups) to develop and extend social relations causing"]
["continued loss of neighbourhood feeling AND/OR increasing citizens' loneliness and so"]
["increased social alienation within the city and"]
["reduced social cohesion"]
["HOW LIKELY DO YOU THINK THIS SCENARIO WILL DEVELOP IN YOUR CITY/REGION?"]
["Highly probable","Probable/Possible ","Improbable ","We don't know","I don't know - someone else does"]
[]
["Scenario 14: \"POLLUTION AND CITIZENS SPENDING TIME OUTDOORS\" - causal chain"]
["city is subject to increasing and unacceptable level of air pollution and so"]
["citizens spend less time outdoors"]
["including on training/physical activity in social setting causing"]
["higher rates of obesity and"]
["greater social alienation and so"]
["a reduction of social cohesion"]
["HOW LIKELY DO YOU THINK THIS SCENARIO WILL DEVELOP IN YOUR CITY/REGION?"]
["Highly probable","Probable/Possible ","Improbable ","We don't know","I don't know - someone else does"]
[]
["Scenario 15: \"COMMUNITIES WITH CONTROLLED ENTRANCES\" - causal chain with vicious cycle"]
["lack of integration of incoming people leads to an increase in "]
["fear of crime which result in an increase in"]
["communities with controlled entrances which separate the rich from the poor REINFORCING"]
["a lack of integration of incoming people and thus "]
["reduced social cohesion"]
["HOW LIKELY DO YOU THINK THIS SCENARIO WILL DEVELOP IN YOUR CITY/REGION?"]
["Highly probable","Probable/Possible ","Improbable ","We don't know","I don't know - someone else does"]

{"sheet":"Social alienation","index":3,"n_rows":139,"n_cols":5,"rows_kept":139,"cut":false,"hidden":false,"merged":[[71,0,71,4],[74,0,74,4],[79,0,79,4],[89,0,89,4],[130,0,130,4],[137,0,137,4],[92,0,92,4],[99,0,99,4],[118,0,118,4],[121,0,121,4],[127,0,127,4],[112,0,112,4],[102,0,102,4],[109,0,109,4],[0,0,0,4],[1,0,1,4],[3,0,3,4],[4,0,4,4],[2,0,2,4],[5,0,5,4],[6,0,6,4],[9,0,9,4],[15,0,15,4],[82,0,82,4],[18,0,18,4],[23,0,23,4],[56,0,56,4],[61,0,61,4],[26,0,26,4],[43,0,43,4],[46,0,46,4],[53,0,53,4],[34,0,34,4],[37,0,37,4],[64,0,64,4]]}
["Topic: Social alienation"]
["Maximum number of scenarios in this tab: 14"]
["HOW LIKELY DO YOU THINK THIS SCENARIO WILL DEVELOP IN YOUR CITY/REGION AND/OR IS A CONCERN TO YOUR PROJECT?"]
["\"SOCIAL ALIENATION\" "]
["Please respond to this scenario by double clicking one of the answers below:"]
["Is your city likely to be subject to increasing social alienation?"]
["HOW LIKELY DO YOU THINK THIS SCENARIO WILL DEVELOP IN YOUR CITY/REGION?"]
["Highly probable (>60%)","Probable/Possible (20-60%)","Improbable (<20%)","We don't know","I don't know - someone else does"]
[]
["Scenario 1: \"PROGRESSING URBANISATION\" - causal chain"]
["increasing urbanisation leads to"]
["citizens experience continuing loss of neighbourhood feeling and"]
["increasing citizens' loneliness which leads to"]
["increasing social alienation and so"]
["reduced social cohesion"]
["HOW LIKELY DO YOU THINK THIS SCENARIO WILL DEVELOP IN YOUR CITY/REGION?"]
["Highly probable","Probable/Possible ","Improbable ","We don't know","I don't know - someone else does"]
[]
["Scenario 2: \"THE TRAP OF LONELINESS\" - vicious cycle"]
["loneliness in the city is rising causing"]
["the quality of life continuously getting worse leading to"]
["mental health problems increasing REINFORCING"]
["loneliness in the city is rising"]
["HOW LIKELY DO YOU THINK THIS SCENARIO WILL DEVELOP IN YOUR CITY/REGION?"]
["Highly probable","Probable/Possible ","Improbable ","We don't know","I don't know - someone else does"]
[]
["Scenario 3: \"PENSION AGE\" - causal chain"]
["later retirement ages means pensions come later in life and"]
["elderly citizens working longer which means"]
["role strain between caring for aged friends and partners, and the need to remain in employment causing"]
["increasing work-related stress for aged citizens and"]
["an increase in breakdown of the family structure AND/OR poorer quality of life for the elderly poor leading to"]
["increased social alienation and loneliness for the aged citizens and so"]
["reducing social cohesion in the city"]
["HOW LIKELY DO YOU THINK THIS SCENARIO WILL DEVELOP IN YOUR CITY/REGION?"]
["Highly probable","Probable/Possible ","Improbable ","We don't know","I don't know - someone else does"]
[]
["Scenario 4: \"FAMILY MEMBERS CO-LOCATION\" - causal chain"]
["families are increasingly living far away from one another leading to"]
["isolation risks of the elderly AND/OR breakdown of the family structure causing"]
["isolation and loneliness leading to "]
["increased social alienation and"]
["reduced social cohesion"]
["HOW LIKELY DO YOU THINK THIS SCENARIO WILL DEVELOP IN YOUR CITY/REGION?"]
["Highly probable","Probable/Possible ","Improbable ","We don't know","I don't know - someone else does"]
[]
["Scenario 5: \"SINGLE HOUSEHOLDS\" - causal chain"]
["family members increasingly living far away from one another AND/OR parents separate leads to"]
["personalisation and individualisation of people's lifestyles in the modern age causing "]
["continued increase in single households and so"]
["isolation and loneliness of working age people from their communities and family, including elderly family, with"]
["a continuing loss of neighbourhood feeling and"]
["increasing loneliness and isolation"]
["HOW LIKELY DO YOU THINK THIS SCENARIO WILL DEVELOP IN YOUR CITY/REGION?"]
["Highly probable","Probable/Possible ","Improbable ","We don't know","I don't know - someone else does"]
[]
["Scenario 6: \"ISOLATION OF DISADVANTAGED PEOPLE\" - vicious cycle"]
["loneliness and isolation among disadvantaged people is rising and is associated with"]
["social stigma attached to isolated and lonely people causing"]
["increasing cases of exploitation of disadvantaged people REINFORCING"]
["loneliness and isolation among disadvantaged people is rising"]
["HOW LIKELY DO YOU THINK THIS SCENARIO WILL DEVELOP IN YOUR CITY/REGION?"]
["Highly probable","Probable/Possible ","Improbable ","We don't know","I don't know - someone else does"]
[]
["Scenario 7: \"DIGITAL MARGINALISATION\" - causal chain"]
["elderly population in the city is increasing with"]
["increasing number of elderly citizens experience problems of keeping up with advancing digital technologies & social media & so"]
["elderly people feel, and become, excluded from the online networks and communities causing"]
["isolation risks and loneliness of the elderly which "]
["increases social alienation and so"]
["reducing social cohesion in the city"]
["HOW LIKELY DO YOU THINK THIS SCENARIO WILL DEVELOP IN YOUR CITY/REGION?"]
["Highly probable","Probable/Possible ","Improbable ","We don't know","I don't know - someone else does"]
[]
["Scenario 8: \"TRUST\" - vicious cycle"]
["increased social alienation within the city leads to"]
["decreasing trust between citizens and so"]
["increasing loneliness which REINFORCES"]
["increased social alienation within the city"]
["HOW LIKELY DO YOU THINK THIS SCENARIO WILL DEVELOP IN YOUR CITY/REGION?"]
["Highly probable","Probable/Possible ","Improbable ","We don't know","I don't know - someone else does"]
[]
["Scenario 9: \"THE TRAP OF FEAR OF CRIME\" - vicious cycle"]
["reduced social cohesion creates"]
["increased violence within the city and"]
["an increasing fear of crime leading to"]
["decreasing trust between citizens and so"]
["increased social alienation of the individuals which REINFORCES"]
["reduced social cohesion"]
["HOW LIKELY DO YOU THINK THIS SCENARIO WILL DEVELOP IN YOUR CITY/REGION?"]
["Highly probable","Probable/Possible ","Improbable ","We don't know","I don't know - someone else does"]
[]
["Scenario 10: \"POLLUTION AND CITIZENS SPENDING TIME OUTDOORS\" - causal chain"]
["city is subject to increasing and unacceptable level of air pollution and so"]
["citizens spend less time outdoors"]
["including on training/physical activity in social setting causing"]
["higher rates of obesity and"]
["greater social alienation and so"]
["a reduction of social cohesion"]
["HOW LIKELY DO YOU THINK THIS SCENARIO WILL DEVELOP IN YOUR CITY/REGION?"]
["Highly probable","Probable/Possible ","Improbable ","We don't know","I don't know - someone else does"]
[]
["Scenario 11: \"COMMUNITY SPACES\" - causal chain"]
["lack of attention to recreational areas in urban development planning leads to "]
["the gradual decline of communal spaces and"]
["neighbourhood decline causing"]
["continued loss of neighbourhood feeling AND/OR increasing citizens' loneliness and so"]
["increased social alienation within the city causing"]
["reduced social cohesion"]
["HOW LIKELY DO YOU THINK THIS SCENARIO WILL DEVELOP IN YOUR CITY/REGION?"]
["Highly probable","Probable/Possible ","Improbable ","We don't know","I don't know - someone else does"]
[]
["Scenario 12: \"ACCESS TO SOCIAL ACTIVITIES\" - causal chain"]
["lack of meeting points for social activities means"]
["fewer opportunities for citizens (and particularly vulnerable groups) to develop and extend social relations causing"]
["continued loss of neighbourhood feeling AND/OR increasing citizens' loneliness and so"]
["increased social alienation within the city and"]
["reduced social cohesion"]
["HOW LIKELY DO YOU THINK THIS SCENARIO WILL DEVELOP IN YOUR CITY/REGION?"]
["Highly probable","Probable/Possible ","Improbable ","We don't know","I don't know - someone else does"]
[]
["Scenario 13: \"WORKERS' RIGHTS BECOME ERODED\" - causal chain"]
["unemployment, underemployment and short term contracts (especially among young people) leads to"]
["increasing erosion of worker rights which means"]
["the current economic system is seen as working for some but not others and also causing"]
["rising social inequalities which creates"]
["increased social alienation within the city"]
["HOW LIKELY DO YOU THINK THIS SCENARIO WILL DEVELOP IN YOUR CITY/REGION?"]
["Highly probable","Probable/Possible ","Improbable ","We don't know","I don't know - someone else does"]
[]
["Scenario 14: \"THE DISENGAGEMENT OF CITIZENS\" - causal chain"]
["increasing social and economic problems (unemployment, reduced social welfare) leads to"]
["loss of trust in the national government and local public/social services which means"]
["decreased participation in civil society (e.g. civil initiatives, voting, joining political parties) leading to"]
["increasing citizens' loneliness and so"]
["increased social alienation within the city with"]
["reduced social cohesion in the city"]
["HOW LIKELY DO YOU THINK THIS SCENARIO WILL DEVELOP IN YOUR CITY/REGION?"]
["Highly probable","Probable/Possible ","Improbable ","We don't know","I don't know - someone else does"]

{"sheet":"Inequalities","index":4,"n_rows":110,"n_cols":5,"rows_kept":110,"cut":false,"hidden":false,"merged":[[0,0,0,4],[2,0,2,4],[3,0,3,4],[4,0,4,4],[69,0,69,4],[8,0,8,4],[59,0,59,4],[66,0,66,4],[15,0,15,4],[18,0,18,4],[23,0,23,4],[39,0,39,4],[47,0,47,4],[79,0,79,4],[26,0,26,4],[36,0,36,4],[82,0,82,4],[50,0,50,4],[56,0,56,4],[91,0,91,4],[103,0,103,4],[108,0,108,4],[94,0,94,4],[100,0,100,4]]}
["Topic: Social inequalities"]
["Maximum number of scenarios in this tab: 10"]
["HOW LIKELY DO YOU THINK THIS SCENARIO WILL DEVELOP IN YOUR CITY/REGION AND/OR IS A CONCERN TO YOUR PROJECT?"]
["\"RISING INEQUALITIES\" "]
["Please respond to this scenario by double clicking one of the answers below:"]
["People in the city are subject to rising social inequalites"]
["Highly probable (>60%)","Probable/Possible (20-60%)","Improbable (<20%)","We don't know","I don't know - someone else does"]
[]
["Scenario 1: \"PARTICIPATION IN CIVIL SOCIETY\" - causal chain"]
["increased marginalisation of the poor within the city AND/OR the economic system working for some but not others creates"]
["rising social inequalities which promotes"]
["the return of 'extreme' political parties and"]
["loss of trust in national government leading to"]
["decreased participation in civil society (e.g. civil initiatives, voting, joining political parties) causing"]
["reduced social cohesion"]
["HOW LIKELY DO YOU THINK THIS SCENARIO WILL DEVELOP IN YOUR CITY/REGION?"]
["Highly probable","Probable/Possible ","Improbable ","We don't know","I don't know - someone else does"]
[]
["Scenario 2: \"DEMENTIA AND THE ELDERLY\" - causal chain"]
["increased number of elderly suffering from Dementia causes"]
["an increased demand for social care which results in"]
["an increased cost in healthcare which results in "]
["rising health inequalities"]
["HOW LIKELY DO YOU THINK THIS SCENARIO WILL DEVELOP IN YOUR CITY/REGION?"]
["Highly probable","Probable/Possible ","Improbable ","We don't know","I don't know - someone else does"]
[]
["Scenario 3: \"UNEMPLOYMENT\" - vicious cycle"]
["rising unemployment in the city leads to"]
["a growth in undeclared jobs which results in "]
["an erosion of workers' rights which means that"]
["the current economic system works for some but not for others which leads to"]
["rising social inequalities and so there is "]
["growth in the multidisavantaged underclass which leads to"]
["a lack of 'political middle' in the political debate and thus"]
["politics tends towards increasing austerity which REINFORCES"]
["rising unemployment in the city"]
["HOW LIKELY DO YOU THINK THIS SCENARIO WILL DEVELOP IN YOUR CITY/REGION?"]
["Highly probable","Probable/Possible ","Improbable ","We don't know","I don't know - someone else does"]
[]
["Scenario 4: \"WORK-RELATED STRESS\" - causal chain"]
["rising unemployment and overall poor economic climate in the city leads to"]
["extreme pressure to deliver and achieve which casues "]
["an increase in work-related stress that leads to"]
["increasing issues relating to mental health which lead to"]
["increasing costs of treating mental health that cause"]
["rising health inequalities and so"]
["increasing social inequalities "]
["HOW LIKELY DO YOU THINK THIS SCENARIO WILL DEVELOP IN YOUR CITY/REGION?"]
["Highly probable","Probable/Possible ","Improbable ","We don't know","I don't know - someone else does"]
[]
["Scenario 5: \"WORKERS' RIGHTS BECOME ERODED\" - causal chain"]
["unemployment, underemployment and short term contracts (especially among young people) leads to"]
["increasing erosion of worker rights which means"]
["the current economic system is seen as working for some but not others and also causing"]
["rising social inequalities which creates"]
["increased social alienation within the city"]
["HOW LIKELY DO YOU THINK THIS SCENARIO WILL DEVELOP IN YOUR CITY/REGION?"]
["Highly probable","Probable/Possible ","Improbable ","We don't know","I don't know - someone else does"]
[]
["Scenario 6: \"UNREGULATED MIGRANT WORKERS\" - causal chain"]
["city is subject to incoming people that is caused by either war, climate change, or economic factors which causes"]
["an influx of additional  cheap labour into the city that"]
["drives down wages of low-paid workers which leads to "]
["an erosion of workers' rights which means that"]
["the current economic system works for some but not for others which leads to"]
["rising social inequalities"]
["HOW LIKELY DO YOU THINK THIS SCENARIO WILL DEVELOP IN YOUR CITY/REGION?"]
["Highly probable","Probable/Possible ","Improbable ","We don't know","I don't know - someone else does"]
[]
["Scenario 7: \"CITIZENS' FINANCIAL DEBT\" - vicious cycle"]
["the city social welfare budget is reduced which leads to "]
["citizens subject to increasing financial debt which results in"]
["loss of ownership of property which leads to"]
["a society with increased renting and loaning which means that"]
["the current economic system works for some but not for others which leads to"]
["rising social inequalities and so there is "]
["a lack of 'political middle' in the political debate and thus"]
["politics tends towards increasing austerity which REINFORCES"]
["a reduction in the social welfare budget"]
["HOW LIKELY DO YOU THINK THIS SCENARIO WILL DEVELOP IN YOUR CITY/REGION?"]
["Highly probable","Probable/Possible ","Improbable ","We don't know","I don't know - someone else does"]
[]
["Scenario 8: \"EDUCATION\" - vicious cycle"]
["citizens have reduced access to free, good quality education which causes"]
["reduced social mobility which leads to"]
["growth in the multidisavantaged underclass which leads to"]
["a lack of 'political middle' in the political debate and thus"]
["politics tends towards increasing austerity which casues an "]
["increase in privatisation of the education system and so"]
["increases the cost of education for citizens which REINFORCES"]
["citizens have reduced access to free, good quality education"]
["HOW LIKELY DO YOU THINK THIS SCENARIO WILL DEVELOP IN YOUR CITY/REGION?"]
["Highly probable","Probable/Possible ","Improbable ","We don't know","I don't know - someone else does"]
[]
["Scenario 9: \"PROGRESSING URBANISATION\" - causal chain"]
["increasing urbanisation leads to"]
["citizens experience continuing loss of neighbourhood feeling and"]
["increasing citizens' loneliness which leads to"]
["increasing social alienation and so"]
["reduced social cohesion"]
["HOW LIKELY DO YOU THINK THIS SCENARIO WILL DEVELOP IN YOUR CITY/REGION?"]
["Highly probable","Probable/Possible ","Improbable ","We don't know","I don't know - someone else does"]
[]
["Scenario 10: \"ISOLATION OF DISADVANTAGED PEOPLE\" - vicious cycle"]
["loneliness and isolation among disadvantaged people is rising and is associated with"]
["social stigma attached to isolated and lonely people causing"]
["increasing cases of exploitation of disadvantaged people REINFORCING"]
["loneliness and isolation among disadvantaged people is rising"]
["HOW LIKELY DO YOU THINK THIS SCENARIO WILL DEVELOP IN YOUR CITY/REGION?"]
["Highly probable","Probable/Possible ","Improbable ","We don't know","I don't know - someone else does"]

{"sheet":"interactions","index":5,"n_rows":67,"n_cols":26,"rows_kept":67,"cut":false,"hidden":true,"merged":[]}
["Elderly population",null,"Health","SC","SA","Ineq",null,null,"Social alienation",null,null,"Ineq","Health","AP","SC","Ageing",null,null,"Public unrest","IM","Infra"]
["Scenario 1: \"AGEING POPULATION\"",null,null,null,null,null,null,null,"Scenario 1: \"SOCIAL ALIENATION\" ",null,null,null,null,null,null,null,null,null,"Scenario 1: \"PUBLIC UNREST IN THE STREETS\"",null,13]
["Scenario 2: \"PENSION AGE\" - causal chain",null,null,4,4,null,null,null,"Scenario 2: \"PROGRESSING URBANISATION\" - causal chain",null,null,10,null,null,12,null,null,null,"Scenario 2: \"CIVIC DISORDER AND THE MEDIA\" - causal chain"]
["Scenario 3: \"FAMILY MEMBERS CO-LOCATION\" - causal chain",null,null,7,5,null,null,null,"Scenario 3: \"THE TRAP OF LONELINESS\" - vicious cycle",null,null,null,11,null,null,null,null,null,"Scenario 3: \"RADICALISM AND EXTREMISM\" - causal chain",6]
["Scenario 4: \"SINGLE HOUSEHOLDS\" - causal chain",null,null,null,6,null,null,null,"Scenario 4: \"PENSION AGE\" - causal chain",null,null,null,null," ",4,2,null,null,"Scenario 4: \"GANG WARFARE\" - vicious loop"]
["Scenario 5: \"AGED CITIZENS' FEAR OF CRIME IN THE CITY\" - vicious cycle",null,null,9,null,null,null,null,"Scenario 5: \"FAMILY MEMBERS CO-LOCATION\" - causal chain",null,null,null,null,null,7,3,null,null,"Scenario 5: \"LOOTING OF SHOPS\" - causal chain"]
["Scenario 6: \"DIGITAL MARGINALISATION\" - causal chain",null,null,5,8,null,null,null,"Scenario 6: \"SINGLE HOUSEHOLDS\" - causal chain",null,null,null,null,null,null,4,null,null,"Scenario 6: \"EMERGENCY SERVICES\" - vicious cycle"]
["Scenario 7: \"DEMENTIA AND THE ELDERLY\" - causal chain",null,7,null,null,3,null,null,"Scenario 7: \"ISOLATION OF DISADVANTAGED PEOPLE\" - vicious cycle",null,null,11,null,null,null,null,null,null,"Scenario 7: \"PUBLIC UNREST IN THE STREETS DISRUPTS THE TRANSPORT CRITICAL INFRASTRUCTURE\"  - causal chain",null,14]
["Scenario 8: \"MENTAL HEALTH AND LONELINESS\" - vicious cycle",null,8,null,null,null,null,null,"Scenario 8: \"DIGITAL MARGINALISATION\" - causal chain",null,null,null,null,null,5,6,null,null,"Scenario 8: \"BUILDINGS, SHOPS AND TRANSPORT\" - causal chain",null,15]
["Scenario 9: \"ALCOHOL ABUSE\" - causal loop",null,null,null,null,null,null,null,"Scenario 9: \"TRUST\" - vicious cycle",null,null,null,null,null,null,null,null,null,"Scenario 9: \"CRIME IN THE CITY\" - causal chain"]
["Scenario 10: \"HEALTHCARE UNDER PRESSURE\" - vicious cycle",null,9,null,null,null,null,null,"Scenario 10: \"THE TRAP OF FEAR OF CRIME\" - vicious cycle",null,null,null,null,null,8,null,null,null,"Scenario 10: \"TOURISM\" - causal chain"]
["Scenario 11: \"SOCIAL WELFARE AND FAMILY SUPPORT\" - causal chain",null,null,6,null,null,null,null,"Scenario 11: \"POLLUTION AND CITIZENS SPENDING TIME OUTDOORS\" - causal chain",null,null,null,null,6,15]
[null,null,null,null,null,null,null,null,"Scenario 12: \"COMMUNITY SPACES\" - causal chain",null,null,null,null,null,13]
[null,null,null,null,null,null,null,null,"Scenario 13: \"ACCESS TO SOCIAL ACTIVITIES\" - causal chain",null,null,null,null,null,14]
[null,null,null,null,null,null,null,null,"Scenario 14: \"WORKERS' RIGHTS BECOME ERODED\" - causal chain",null,null,6]
[null,null,null,null,null,null,null,null,"Scenario 15: \"THE DISENGAGEMENT OF CITIZENS\" - causal chain",null,null,null,null,null,2]
[]
[]
["Social cohesion",null,null,null,"IM","INEQ","A","SA","AP",null,"Inequalities",null,"SA","SC","IM","Health","AP","Ageing",null,null,"Health","ineq","ageing","ap","flood","infra"]
["Scenario 1: \"REDUCED SOCIAL COHESION\" ",null,null,null,null,null,null,null,null,null,"Scenario 1: \"RISING INEQUALITIES\" ",null,null,null,null,null,null,null,null,null,"Scenario 1: \"CITY'S HEALTH\""]
["Scenario 2: \"THE DISENGAGEMENT OF CITIZENS\" - causal chain",null,null,null,null,null,null,15,null,null,"Scenario 2: \"PARTICIPATION IN CIVIL SOCIETY\" - causal chain",null,null,3,null,null,null,null,null,null,"Scenario 2: \"DRUG AND ALCOHOL ABUSE\" - causal chain"]
["Scenario 3: \"PARTICIPATION IN CIVIL SOCIETY\" - causal chain",null,null,null,null,2,null,null,null,null,"Scenario 3: \"DEMENTIA AND THE ELDERLY\" - causal chain",null,null,null,null,7,null,7,null,null,"Scenario 3: \"OBESITY\" - causal chain"]
["Scenario 4: \"PENSION AGE\" - causal chain",null,null,null,null,null,2,4,null,null,"Scenario 4: \"UNEMPLOYMENT\" - vicious cycle",null,null,null,null,null,null,null,null,null,"Scenario 4: \"CITIZENS SUFFER FROM RESPIRATORY DISEASES\" - causal chain",null,null,4]
["Scenario 5: \"DIGITAL MARGINALISATION\" - causal chain",null,null,null,null,null,6,8,null,null,"Scenario 5: \"WORK-RELATED STRESS\" - causal chain",null,null,null,null,10,null,null,null,null,"Scenario 5: \"COSTS OF DELIVERING HEALTHCARE\" - vicious cycle"]
["Scenario 6: \"SOCIAL WELFARE AND FAMILY SUPPORT\" - causal chain",null,null,null,null,null,11,null,null,null,"Scenario 6: \"WORKERS' RIGHTS BECOME ERODED\" - causal chain",null,14,null,null,null,null,null,null,null,"Scenario 6: \"HEALTH INEQUALITIES\" - vicious cycle"]
["Scenario 7: \"FAMILY MEMBERS CO-LOCATION\" - causal chain",null,null,null,null,null,3,5,null,null,"Scenario 7: \"UNREGULATED MIGRANT WORKERS\" - causal chain",null,null,null,3,null,null,null,null,null,"Scenario 7: \"DEMENTIA AND THE ELDERLY\" - causal chain",3,7]
["Scenario 8: \"THE TRAP OF FEAR OF CRIME\" - vicious cycle",null,null,null,null,null,null,10,null,null,"Scenario 8: \"CITIZENS' FINANCIAL DEBT\" - vicious cycle",null,null,null,null,null,null,null,null,null,"Scenario 8: \"MENTAL HEALTH AND LONELINESS\" - vicious cycle",null,8]
["Scenario 9: \"AGED CITIZENS' FEAR OF CRIME IN THE CITY\" - causal chain",null,null,null,null,null,5,null,null,null,"Scenario 9: \"EDUCATION\" - vicious cycle",null,null,null,null,null,null,null,null,null,"Scenario 9: \"HEALTHCARE UNDER PRESSURE\" - vicious cycle",null,10]
["Scenario 10: \"INTEGRATION\" - vicious cycle",null,null,null,4,null,null,null,null,null,"Scenario 10: \"PROGRESSING URBANISATION\" - causal chain",null,2,12,null,null,null,null,null,null,"Scenario 10: \"WORK-RELATED STRESS\" - causal chain",5]
["Scenario 11: \"INTEGRATION AND SOCIAL COHESION\" - causal chain",null,null,null,5,null,null,null,null,null,"Scenario 11: \"ISOLATION OF DISADVANTAGED PEOPLE\" - vicious cycle",null,7,null,null,null,null,null,null,null,"Scenario 11: \"THE TRAP OF LONELINESS\" - vicious cycle ",3]
["Scenario 12: \"PROGRESSING URBANISATION\" - causal chain",null,null,null,null,10,null,2,null,null,"Scenario 12: \"AIR QUALITY INEQUALITIES\" - causal chain",null,null,null,null,null,9,null,null,null,"Scenario 12: \"FLOODING AND SANITATION\" - causal chain",null,null,null,11]
["Scenario 13: \"COMMUNITY SPACES\" - causal chain",null,null,null,null,null,null,12,null,null,null,null,null,null,null,null,null,null,null,null,"Scenario 13: \"DRINKING WATER SUPPLIES\" - causal chain",null,null,null,12,9]
["Scenario 14: \"ACCESS TO SOCIAL ACTIVITIES\" - causal chain",null,null,null,null,null,null,13]
["Scenario 15: \"POLLUTION AND CITIZENS SPENDING TIME OUTDOORS\" - causal chain",null,null,null,null,null,null,11,6]
["Scenario 16: \"COMMUNITIES WITH CONTROLLED ENTRANCES\" - vicious cycle",null,null,null,7]
[]
["AIR POLLUTION",null,"health","SC","SA","Ineq","Infra",null,null,null,"Flooding",null,"Health","Infra",null,null,null,null,null,null,"Integration",null,"SC","RT","IN"]
["Scenario 1: \"AIR POLLUTION\"",null,null,null,null,null,1,null,null,null,"Scenario 1: \"FLOODING\"",null,null,4,null,null,null,null,null,null,"Scenario 1: \"INCOMING PEOPLE\""]
["Scenario 2: \"COLDER WINTERS AND CLIMATE CHANGE\"",null,null,null,null,null,null,null,null,null,"Scenario 2: \"DRAINAGE SYSTEMS\" - vicious cycle",null,null,null,null,null,null,null,null,null,"Scenario 2: \"WELFARE SYSTEM\" - causal chain"]
["Scenario 3: \"HOTTER, DRIER SUMMERS AND CLIMATE CHANGE\"",null,null,null,null,null,null,null,null,null,"Scenario 3: \"FLOODING AND THE EMERGENCY SERVICES\" - causal chain",null,null,7,null,null,null,null,null,null,"Scenario 3: \"UNREGULATED MIGRANT WORKERS\" - causal chain",null,null,null,7]
["Scenario 4: \"CITIZENS SUFFER FROM RESPIRATORY DISEASES\"",null,4,null,null,null,null,null,null,null,"Scenario 4: \"FLOODING AND HOMELESSNESS\" - causal chain",null,null,null,null,null,null,null,null,null,"Scenario 4: \"INTEGRATION\" - vicious cycle",null,10]
["Scenario 5: \"TRAFFIC DENSITY AND AIR POLLUTION\"",null,null,null,null,null,null,null,null,null,"Scenario 5: \"SKILLED WORKERS AND FLOODING\" - vicious loop",null,null,null,null,null,null,null,null,null,"Scenario 5: \"INTEGRATION AND SOCIAL COHESION\" - vicious cycle",null,11]
["Scenario 6: \"POLLUTION AND CITIZENS SPENDING TIME OUTDOORS\"",null,null,15,11,null,null,null,null,null,"Scenario 6: \"LOSS OF ELECTRICITY\" - causal chain",null,null,6,null,null,null,null,null,null,"Scenario 6: \"RADICALISM AND EXTREMISM\" - causal chain",null,null,3]
["Scenario 7: \"POLLUTION AND PROFESSIONALS AND SKILLED WORKERS\"",null,null,null,null,null,null,null,null,null,"Scenario 7: \"LOCAL BUSINESSES AND FLOODING\" - causal chain",null,null,null,null,null,null,null,null,null,"Scenario 7: \"COMMUNITIES WITH CONTROLLED ENTRANCES\" - vicious cycle",null,16]
["Scenario 8: \"POLLUTION AND BUSINESS COMPETETIVENESS\"",null,null,null,null,null,null,null,null,null,"Scenario 8: \"INFORMAL SETTLEMENT IN FLOOD-PRONE AREAS\" - causal chain"]
["cenario 9: \"WATER QUALITY\"",null,null,null,null,null,null,null,null,null,"Scenario 9: \"LESS PRODUCTIVE FARMING LAND\" - causal chain",null,null,8]
["Scenario 10: \"FARMING AND AIR POLLUTION\"",null,null,null,null,null,null,null,null,null,"Scenario 10: \"QUALITY OF URBAN GREEN SPACES\" - causal chain"]
["Scenario 11: \"THE RAMIFICATIONS OF ACID RAINS IN THE CITY\" - causal chain",null,null,null,null,null,2,null,null,null,"Scenario 11: \"EMERGENCE OF DISEASES RELATED TO INCREASED AMOUNTS OF STAGNANT WATER\" - causal chain",null,12]
["Scenario 12: \"DAMAGE TO INVALUABLE CULTURAL/HISTORICAL ASSETS\" - causal chain",null,null,null,null,null,3,null,null,null,"Scenario 12: \"DRINKING WATER SUPPLIES\" - causal chain",null,13,9]
[null,null,null,null,null,null,null,null,null,null,"Scenario 13: \"SEWAGE SYSTEM\"",null,null,10]
[null,null,null,null,null,null,null,null,null,null,"Scenario 14: \"CITIZENS SUFFER FROM LACK OF HOME INSURANCE TO SAVE THEIR ASSETS\" - causal chain",null,null,5]
["Infrastructure",null,"AP","Flood","Unrest","Health"]
["Scenario 1: \"AIR POLLUTION\"",null,1]
["Scenario 2: \"THE RAMIFICATIONS OF ACID RAINS IN THE CITY\" - causal chain",null,12]
["Scenario 3: \"DAMAGE TO INVALUABLE CULTURAL/HISTORICAL ASSETS\" - causal chain",null,13]
["Scenario 4: \"FLOODING\"",null,null,1]
["Scenario 5: \"CITIZENS SUFFER FROM LACK OF HOME INSURANCE TO SAVE THEIR ASSETS\" - causal chain",null,null,14]
["Scenario 6: \"LOSS OF ELECTRICITY\" - causal chain",null,null,6]
["Scenario 7: \"FLOODING AND THE EMERGENCY SERVICES\" - causal chain",null,null,3]
["Scenario 8: \"LESS PRODUCTIVE FARMING LAND\" - causal chain",null,null,9]
["Scenario 9: \"DRINKING WATER SUPPLIES\" - vicious loop",null,null,12,null,13]
["Scenario 10: \"SEWAGE SYSTEM\"",null,null,13]
["Scenario 11: \"DEMAND FOR TEMPORARY HOUSING\" - causal chain"]
["Scenario 12: \"LOCAL AUTHORITIES' BUDGET UNDER PRESSURE\" - vicious cycle"]
["Scenario 13: \"UNREST IN THE CITY\"",null,null,null,1]
["Scenario 14: \"UNREST ON THE STREETS DISRUPTS THE TRANSPORT CRITICAL INFRASTRUCTURE\"  - causal chain",null,null,null,7]
["Scenario 15: \"BUILDINGS, SHOPS AND TRANSPORT\" - causal chain",null,null,null,8]

{"sheet":"Climate change - air pollution","index":6,"n_rows":109,"n_cols":5,"rows_kept":109,"cut":false,"hidden":false,"merged":[[0,0,0,4],[2,0,2,4],[3,0,3,4],[4,0,4,4],[1,0,1,4],[5,0,5,4],[14,0,14,4],[8,0,8,4],[25,0,25,4],[29,0,29,4],[17,0,17,4],[22,0,22,4],[32,0,32,4],[39,0,39,4],[52,0,52,4],[62,0,62,4],[42,0,42,4],[49,0,49,4],[65,0,65,4],[88,0,88,4],[96,0,96,4],[99,0,99,4],[107,0,107,4],[70,0,70,4],[80,0,80,4],[85,0,85,4],[73,0,73,4],[77,0,77,4]]}
["Topic: Climate change - air pollution"]
["Maximum number of scenarios in this tab: 11"]
["HOW LIKELY DO YOU THINK THIS SCENARIO WILL DEVELOP IN YOUR CITY/REGION AND/OR IS A CONCERN TO YOUR PROJECT?"]
["\"AIR POLLUTION\" "]
["Please respond to this scenario by double clicking one of the answers below:"]
["Is the city faced with increasing air pollution?"]
["Highly probable (>60%)","Probable/Possible (20-60%)","Improbable (<20%)","We don't know","I don't know - someone else does"]
[]
["Scenario 1: \"COLDER WINTERS AND CLIMATE CHANGE\" - vicious cycle"]
["climate change is happening according to, or beyond, modelled projections and so"]
["the city experiences colder icy winters with either or both of"]
["frequent freezing fog trapping exhaust fumes etc AND/OR"]
["greater use of winter tyres emitting more fine particles of rubber which REINFORCES"]
["increases in unacceptable levels of air pollution, and so climate change occuring beyond projections"]
["HOW LIKELY DO YOU THINK THIS SCENARIO WILL DEVELOP IN YOUR CITY/REGION?"]
["Highly probable","Probable/Possible ","Improbable ","We don't know","I don't know - someone else does"]
[]
["Scenario 2: \"HOTTER, DRIER SUMMERS AND CLIMATE CHANGE\" - vicious cycle"]
["climate change happening according to, or beyond, modelled projections means that"]
["the city is experiencing hot, drier summers and so increasingly"]
["an increased demand for air conditioning  which REINFORCES"]
["unacceptable levels of air pollution, and so climate change occuring beyond projections"]
["HOW LIKELY DO YOU THINK THIS SCENARIO WILL DEVELOP IN YOUR CITY/REGION?"]
["Highly probable","Probable/Possible ","Improbable ","We don't know","I don't know - someone else does"]
[]
["Scenario 3: \"RESPIRATORY DISEASE\" - causal chain"]
["city is subject to inreasing and unacceptable level of air pollution means that"]
["increasing number of citizens suffer from respiratory diseases AND/OR breathing difficulties"]
["more work days lost and so lower productivity of city"]
["HOW LIKELY DO YOU THINK THIS SCENARIO WILL DEVELOP IN YOUR CITY/REGION?"]
["Highly probable","Probable/Possible ","Improbable ","We don't know","I don't know - someone else does"]
[]
["Scenario 4: \"TRAFFIC DENSITY AND AIR POLLUTION\" - vicious cycle"]
["city is subject to inreasing and unacceptable level of air pollution and so"]
["air quality becomes, and is perceived to be, unhealthy which leads to"]
["fewer people using their bicycles for leisure or to commute to work leading to"]
["growth in use of cars, and so traffic density, and longer commutes and so"]
["the amount of bad emissions is rising REINFORCING"]
["unacceptable levels of air pollution"]
["HOW LIKELY DO YOU THINK THIS SCENARIO WILL DEVELOP IN YOUR CITY/REGION?"]
["Highly probable","Probable/Possible ","Improbable ","We don't know","I don't know - someone else does"]
[]
["Scenario 5: \"POLLUTION AND CITIZENS SPENDING TIME OUTDOORS\" - causal chain"]
["city is subject to increasing and unacceptable level of air pollution and so"]
["citizens spend less time outdoors"]
["including on training/physical activity in social setting causing"]
["higher rates of obesity and"]
["greater social alienation and so"]
["a reduction of social cohesion"]
["HOW LIKELY DO YOU THINK THIS SCENARIO WILL DEVELOP IN YOUR CITY/REGION?"]
["Highly probable","Probable/Possible ","Improbable ","We don't know","I don't know - someone else does"]
[]
["Scenario 6: \"POLLUTION AND PROFESSIONALS AND SKILLED WORKERS\" - causal chain"]
["city is subject to increasing and unacceptable levels of air pollution making"]
["city less attractive to live and work in causing"]
["skilled workers and professionals to leave working and/or living in the city so"]
["lower activity (events etc organised by the city) that attracts tourists"]
["the city gets lower local tax income from citizens (eg council or municipal tax) and tourists (eg city tax on hotel stays) and so"]
["an increasing possibility of longterm damage to the local economy with"]
["a loss of business taxes to the city and so"]
["the city budget under increasing pressure REINFORCING"]
["lower activity (events etc organised by the city) that attracts tourists"]
["HOW LIKELY DO YOU THINK THIS SCENARIO WILL DEVELOP IN YOUR CITY/REGION?"]
["Highly probable","Probable/Possible ","Improbable ","We don't know","I don't know - someone else does"]
[]
["Scenario 7: \"POLLUTION AND BUSINESS COMPETETIVENESS\" - causal chain"]
["city is subject to increasing and unacceptable levels of air pollution making which impacts"]
["concentration and so productivity levels in factories and offices drops and so"]
["local businesses become less competitive leading to"]
["lower chance of attracting new business and employment to the city"]
["HOW LIKELY DO YOU THINK THIS SCENARIO WILL DEVELOP IN YOUR CITY/REGION?"]
["Highly probable","Probable/Possible ","Improbable ","We don't know","I don't know - someone else does"]
[]
["Scenario 8: \"WATER QUALITY\" - causal chain"]
["city is subject to increasing and unacceptable level of air pollution leads to"]
["declining quality of water supply in the city which means that"]
["treatment of water becomes more expensive"]
["HOW LIKELY DO YOU THINK THIS SCENARIO WILL DEVELOP IN YOUR CITY/REGION?"]
["Highly probable","Probable/Possible ","Improbable ","We don't know","I don't know - someone else does"]
[]
["Scenario 9: \"FARMING AND AIR POLLUTION\" - causal chain"]
["city is subject to increasing and unacceptable level of air pollution leads to"]
["soil health gradually declining means"]
["farming land less productive and less land for farming and so"]
["reduced local food production"]
["HOW LIKELY DO YOU THINK THIS SCENARIO WILL DEVELOP IN YOUR CITY/REGION?"]
["Highly probable","Probable/Possible ","Improbable ","We don't know","I don't know - someone else does"]
[]
["Scenario 10: \"THE RAMIFICATIONS OF ACID RAINS IN THE CITY\" - causal chain"]
["city is subject to unacceptable increases in air pollution which may cause"]
["acid rain which can lead to "]
["a decline in soil health which may have a "]
["negative impact on animals/biodviersity in general, including a"]
["negative impact on biodiversity in urban green spaces which results in"]
["declining quality and availability of community spaces which contribute to"]
["neighbourhood decline"]
["HOW LIKELY DO YOU THINK THIS SCENARIO WILL DEVELOP IN YOUR CITY/REGION?"]
["Highly probable","Probable/Possible ","Improbable ","We don't know","I don't know - someone else does"]
[]
["Scenario 11: \"DAMAGE TO INVALUABLE CULTURAL/HISTORICAL ASSETS\" - causal chain"]
["city is subject to unacceptable increases in air pollution which may cause"]
["acid rain which can lead to "]
["damage to invaluable cultural/historical assets then "]
["a city's reputation can be severly damaged which will place"]
["increased pressure on authorites to act and, as a result,"]
["the city may spend money on the crisis highiglighted by the media rather than on on infrastructure which may mean that "]
["the city is unable to deal effectively with shocks that impact infrastructure"]
["HOW LIKELY DO YOU THINK THIS SCENARIO WILL DEVELOP IN YOUR CITY/REGION?"]
["Highly probable","Probable/Possible ","Improbable ","We don't know","I don't know - someone else does"]

{"sheet":"Climate change - flooding","index":7,"n_rows":120,"n_cols":5,"rows_kept":120,"cut":false,"hidden":false,"merged":[[5,0,5,4],[6,0,6,4],[9,0,9,4],[12,0,12,4],[62,0,62,4],[31,0,31,4],[41,0,41,4],[44,0,44,4],[49,0,49,4],[15,0,15,4],[20,0,20,4],[28,0,28,4],[23,0,23,4],[0,0,0,4],[1,0,1,4],[2,0,2,4],[3,0,3,4],[4,0,4,4],[65,0,65,4],[52,0,52,4],[59,0,59,4],[92,0,92,4],[68,0,68,4],[73,0,73,4],[76,0,76,4],[86,0,86,4],[83,0,83,4],[103,0,103,4],[109,0,109,4],[112,0,112,4],[118,0,118,4],[95,0,95,4],[100,0,100,4]]}
["Topic: Climate change - flooding"]
["3Maximum number of scenarios in this tab: 14"]
["HOW LIKELY DO YOU THINK THIS SCENARIO WILL DEVELOP IN YOUR CITY/REGION AND/OR IS A CONCERN TO YOUR PROJECT?"]
["\"FLOODING\""]
["Please respond to this scenario by double clicking one of the answers below:"]
["Is flooding from coastal, river or surface water likely to occur in your city?"]
["HOW LIKELY DO YOU THINK THIS SCENARIO WILL DEVELOP IN YOUR CITY/REGION?"]
["Highly probable (>60%)","Probable/Possible (20-60%)","Improbable (<20%)","We don't know","I don't know - someone else does"]
[]
["Scenario 1: \"DRAINAGE SYSTEMS\" - vicious cycle"]
["city is overwhelmed by flooding leads to"]
["flooding being REINFORCED when city has substandard and/or blocked drains"]
["HOW LIKELY DO YOU THINK THIS SCENARIO WILL DEVELOP IN YOUR CITY/REGION?"]
["Highly probable","Probable/Possible ","Improbable ","We don't know","I don't know - someone else does"]
[]
["Scenario 2: \"FLOODING AND THE EMERGENCY SERVICES\" - causal chain"]
["flooding disrupts the transportation system and also causes"]
["an increased number of traffic accidents in the region which also"]
["constrains the mobility of citizens and emergency services thus"]
["delay to emergency evacuation"]
["HOW LIKELY DO YOU THINK THIS SCENARIO WILL DEVELOP IN YOUR CITY/REGION?"]
["Highly probable","Probable/Possible ","Improbable","We don't know","I don't know - someone else does"]
[]
["Scenario 3: \"FLOODING AND HOMELESSNESS\" - causal chain"]
["city is overwhelmed by flooding which leads to"]
["some people abandoning their homes which may"]
["increase the level of homelessness creating"]
["increased demand for temporary housing"]
["HOW LIKELY DO YOU THINK THIS SCENARIO WILL DEVELOP IN YOUR CITY/REGION?"]
["Highly probable","Probable/Possible ","Improbable ","We don't know","I don't know - someone else does"]
[]
["Scenario 4: \"SKILLED WORKERS AND FLOODING\" - vicious cycle"]
["city is overwhelmed by flooding causes"]
["some people move to cities with less risk of flooding which may mean that"]
["skilled workers leave the city and thus there is"]
["lower activity (events etc organised by the city) that attracts tourists"]
["the city gets lower local tax income from citizens (e.g. council or municipal tax) & tourists (e.g. city tax on hotel stays) & so"]
["an increasing possibility of longterm damage to the local economy with"]
["a loss of business taxes to the city and so"]
["the city budget under increasing pressure REINFORCING"]
["lower activity (events etc organised by the city) that attracts tourists"]
["HOW LIKELY DO YOU THINK THIS SCENARIO WILL DEVELOP IN YOUR CITY/REGION?"]
["Highly probable","Probable/Possible ","Improbable ","We don't know","I don't know - someone else does"]
[]
["Scenario 5: \"LOSS OF ELECTRICITY\" - causal chain"]
["city is overwhelmed by flooding"]
["damages power plants in the city/region and thus leads to"]
["loss of power in the electrical network in the city/region thereby"]
["vulnerable people at increased risk"]
["HOW LIKELY DO YOU THINK THIS SCENARIO WILL DEVELOP IN YOUR CITY/REGION?"]
["Highly probable","Probable/Possible ","Improbable ","We don't know","I don't know - someone else does"]
[]
["Scenario 6: \"LOCAL BUSINESSES AND FLOODING\" - causal chain"]
["city is overwhelmed by flooding"]
["damaged power plants in the city/region and thus lead to"]
["loss of power in the electrical network in the city/region combined with"]
["flooding damage to local businesses, and impact on transport, causes"]
["financial losses for local businesses and so"]
["damages the local economy"]
["HOW LIKELY DO YOU THINK THIS SCENARIO WILL DEVELOP IN YOUR CITY/REGION?"]
["Highly probable","Probable/Possible ","Improbable ","We don't know","I don't know - someone else does"]
[]
["Scenario 7: \"INFORMAL SETTLEMENT IN FLOOD-PRONE AREAS\" - causal chain"]
["When informal settlements that exist in flood-prone areas suffer from lack of appropriate transportation options and thus"]
["residents are more vulnerable to the consequences of flooding"]
["HOW LIKELY DO YOU THINK THIS SCENARIO WILL DEVELOP IN YOUR CITY/REGION?"]
["Highly probable","Probable/Possible ","Improbable ","We don't know","I don't know - someone else does"]
[]
["Scenario 8: \"LESS PRODUCTIVE FARMING LAND\" - causal chain"]
["city is overwhelmed by flooding causes"]
["long-term decline in soil health in the city/region which means"]
["less high arable crop land and less high productivity pastures for farming with"]
["reduced local food production in the region"]
["HOW LIKELY DO YOU THINK THIS SCENARIO WILL DEVELOP IN YOUR CITY/REGION?"]
["Highly probable","Probable/Possible ","Improbable ","We don't know","I don't know - someone else does"]
[]
["Scenario 9: \"QUALITY OF URBAN GREEN SPACES\" - causal chain"]
["city is overwhelmed by flooding leads to"]
["a long-term decline in soil health which can have "]
["a negative impact on biodiversity in the city/region and this can lead to "]
["a decline in the quality of urban green spaces with"]
["less use of green space and so"]
["a decrease in social cohesion"]
["HOW LIKELY DO YOU THINK THIS SCENARIO WILL DEVELOP IN YOUR CITY/REGION?"]
["Highly probable","Probable/Possible ","Improbable ","We don't know","I don't know - someone else does"]
[]
["Scenario 10: \"FLOODING AND SANITATION\" - causal chain"]
["city is overwhelmed by flooding leads to"]
["faster spread of diseases associated with large volumes of stagnant water"]
["and/or a spread of pests (e.g. rats) in the city  flushed out by the flooding resulting in"]
["sanitation problems and possible pandemic diseases impacting"]
["an increase of people's health problems"]
["HOW LIKELY DO YOU THINK THIS SCENARIO WILL DEVELOP IN YOUR CITY/REGION?"]
["Highly probable","Probable/Possible ","Improbable ","We don't know","I don't know - someone else does"]
[]
["Scenario 11: \"DRINKING WATER SUPPLIES\" - causal chain"]
["flooding within the city causes"]
["contaminated water getting into the drinking water network as well as"]
["significant power outage which means that"]
["drinking water supplies to homes and hospitals is contaminated and/or unavailable"]
["HOW LIKELY DO YOU THINK THIS SCENARIO WILL DEVELOP IN YOUR CITY/REGION?"]
["Highly probable","Probable/Possible ","Improbable ","We don't know","I don't know - someone else does"]
[]
["Scenario 12: \"SEWAGE SYSTEM\" - causal chain"]
["flooding within the city causes"]
["a lot of water to float on the ground because the drainage system does not have sufficient capacity and  REINFORCING"]
["flooding, particularly in low-rise buildings which means"]
["the sewage system becomes filled with loosened materials (such as tarmac, plants, rocks, paving slabs, trees) causing"]
["long term damage to the sewage system"]
["HOW LIKELY DO YOU THINK THIS SCENARIO WILL DEVELOP IN YOUR CITY/REGION?"]
["Highly probable","Probable/Possible ","Improbable ","We don't know","I don't know - someone else does"]
[]
["Scenario 13: \"LACK OF HOME INSURANCE\" - causal chain"]
["city is subject to a greater likelihood of severe flooding which means that"]
["properties may be permanently damaged which could mean there are"]
["high costs associated with recovering high value assets which could result in"]
["increased insurance premiums for citizens in risk areas and thus"]
["people may not be able to get, or afford, home insurance which puts their homes at risk"]
["HOW LIKELY DO YOU THINK THIS SCENARIO WILL DEVELOP IN YOUR CITY/REGION?"]
["Highly probable","Probable/Possible ","Improbable ","We don't know","I don't know - someone else does"]

{"sheet":"Health","index":8,"n_rows":113,"n_cols":5,"rows_kept":113,"cut":false,"hidden":false,"merged":[[106,0,106,4],[111,0,111,4],[103,0,103,4],[99,0,99,4],[97,0,97,4],[89,0,89,4],[94,0,94,4],[59,0,59,4],[66,0,66,4],[9,0,9,4],[14,0,14,4],[51,0,51,4],[56,0,56,4],[23,0,23,4],[30,0,30,4],[17,0,17,4],[69,0,69,4],[75,0,75,4],[78,0,78,4],[86,0,86,4],[0,0,0,4],[2,0,2,4],[33,0,33,4],[42,0,42,4],[48,0,48,4],[39,0,39,4],[3,0,3,4],[4,0,4,4],[5,0,5,4],[6,0,6,4],[1,0,1,4],[26,0,26,4]]}
["Topic: Health"]
["Maximum number of scenarios in this tab: 12"]
["HOW LIKELY DO YOU THINK THIS SCENARIO WILL DEVELOP IN YOUR CITY/REGION AND/OR IS A CONCERN TO YOUR PROJECT?"]
["\"CITY'S HEALTH\""]
["Please respond to this scenario by double clicking one of the answers below:"]
["Is the overall health of the city's population likely to be decreasing?"]
["HOW LIKELY DO YOU THINK THIS SCENARIO WILL DEVELOP IN YOUR CITY/REGION?"]
["Highly probable (>60%)","Probable/Possible (20-60%)","Improbable (<20%)","We don't know","I don't know - someone else does"]
[]
["Scenario 1: \"DRUG AND ALCOHOL ABUSE\" - causal chain"]
["an increase in citizens' alcohol and drug abuse leads to"]
["an increase in peoples' health problems which causes "]
["an increase in the cost of healthcare which means that "]
["the city's hospitals and health services are faced with increasing pressures"]
["HOW LIKELY DO YOU THINK THIS SCENARIO WILL DEVELOP IN YOUR CITY/REGION?"]
["Highly probable","Probable/Possible ","Improbable ","We don't know","I don't know - someone else does"]
[]
["Scenario 2: \"OBESITY\" - causal chain"]
["citizens spend less time outdoors on training/physical activity leads to "]
["the population being subject to higher rates of obesity which causes"]
["an increase in peoples' health problems which causes "]
["an increase in the cost of healthcare which means that "]
["the city's hospitals and health services are faced with increasing pressures"]
["HOW LIKELY DO YOU THINK THIS SCENARIO WILL DEVELOP IN YOUR CITY/REGION?"]
["Highly probable","Probable/Possible ","Improbable ","We don't know","I don't know - someone else does"]
[]
["Scenario 3: \"RESPIRATORY DISEASE\" - causal chain"]
["city is subject to inreasing and unacceptable level of air pollution means that"]
["increasing number of citizens suffer from respiratory diseases AND/OR breathing difficulties"]
["more work days lost and so lower productivity of city"]
["HOW LIKELY DO YOU THINK THIS SCENARIO WILL DEVELOP IN YOUR CITY/REGION?"]
["Highly probable","Probable/Possible ","Improbable ","We don't know","I don't know - someone else does"]
[]
["Scenario 4: \"COST OF DELIVERING HEALTHCARE\" - vicious cycle"]
["city's hospital and health services face intolerable pressures which causes"]
["the quality of the city's health services to reduce significantly which leads to"]
["health problems in the city's population rising towards intolerable levels causing"]
["increasing costs of delivering healthcare services which REINFORCES"]
["city's hospitals and health services  facing intolerable pressures"]
["HOW LIKELY DO YOU THINK THIS SCENARIO WILL DEVELOP IN YOUR CITY/REGION?"]
["Highly probable","Probable/Possible ","Improbable ","We don't know","I don't know - someone else does"]
[]
["Scenario 5: \"HEALTH INEQUALITIES\" - vicious cycle"]
["city's hospital and health services face intolerable pressures which means there is"]
["an inability to deliver some basic healthcare and preventive interventions causing"]
["rising health inequalities lead to an increase in"]
["health problems for those in poverty REINFORCING"]
["hospitals and health services under increasing pressures"]
["HOW LIKELY DO YOU THINK THIS SCENARIO WILL DEVELOP IN YOUR CITY/REGION?"]
["Highly probable","Probable/Possible ","Improbable ","We don't know","I don't know - someone else does"]
[]
["Scenario 6: \"DEMENTIA AND THE ELDERLY\" - causal chain"]
["increased number of elderly suffering from Dementia causes"]
["an increased demand for social care which results in"]
["an increased cost in healthcare which results in "]
["rising health inequalities"]
["HOW LIKELY DO YOU THINK THIS SCENARIO WILL DEVELOP IN YOUR CITY/REGION?"]
["Highly probable","Probable/Possible ","Improbable ","We don't know","I don't know - someone else does"]
[]
["Scenario 7: \"MENTAL HEALTH AND LONELINESS\" - vicious cycle"]
["increase in loneliness among the elderly means"]
["increasing issues related to mental health of aged citizens leading to"]
["increase in alcohol abuse among the aged citizens AND/OR increase in long term co-morbidity and so"]
["overall increase of the aged peoples' health problems leading to"]
["poor life quality for the aged poor which REINFORCES"]
["increasing loneliness of the elderly citizens"]
["HOW LIKELY DO YOU THINK THIS SCENARIO WILL DEVELOP IN YOUR CITY/REGION?"]
["Highly probable","Probable/Possible ","Improbable ","We don't know","I don't know - someone else does"]
[]
["Scenario 8: \"HEALTHCARE UNDER PRESSURE\" - vicious cycle"]
["overall increase of the aged peoples' health problems creates"]
["a city faced with a significantly growing demand for social care and healthcare and so"]
["healthcare services are under increasing pressure causing"]
["the quality of healthcare reduced which REINFORCES"]
["overall increase of the aged peoples' health problems"]
["HOW LIKELY DO YOU THINK THIS SCENARIO WILL DEVELOP IN YOUR CITY/REGION?"]
["Highly probable","Probable/Possible ","Improbable ","We don't know","I don't know - someone else does"]
[]
["Scenario 9: \"WORK-RELATED STRESS\" - causal chain"]
["rising unemployment and overall poor economic climate in the city leads to"]
["extreme pressure to deliver and achieve which casues "]
["an increase in work-related stress that leads to"]
["increasing issues relating to mental health which lead to"]
["increasing costs of treating mental health that cause"]
["rising health inequalities and so"]
["increasing social inequalities "]
["HOW LIKELY DO YOU THINK THIS SCENARIO WILL DEVELOP IN YOUR CITY/REGION?"]
["Highly probable","Probable/Possible ","Improbable ","We don't know","I don't know - someone else does"]
[]
["Scenario 10: \"THE TRAP OF LONELINESS\" - vicious cycle "]
["loneliness in the city is rising causing"]
["the quality of life continuously getting worse leading to"]
["mental health problems increasing REINFORCING"]
["loneliness in the city is rising"]
["HOW LIKELY DO YOU THINK THIS SCENARIO WILL DEVELOP IN YOUR CITY/REGION?"]
["Highly probable","Probable/Possible ","Improbable ","We don't know","I don't know - someone else does"]
[]
["Scenario 11: \"FLOODING AND SANITATION\" - causal chain"]
["city is overwhelmed by flooding leads to"]
["faster spread of diseases associated with large volumes of stagnant water"]
["and/or a spread of pests (e.g. rats) in the city flushed out by the flooding resulting in"]
["sanitation problems and possible pandemic diseases impacting"]
["an increase of people's health problems"]
["HOW LIKELY DO YOU THINK THIS SCENARIO WILL DEVELOP IN YOUR CITY/REGION?"]
["Highly probable","Probable/Possible ","Improbable ","We don't know","I don't know - someone else does"]
[]
["Scenario 12: \"DRINKING WATER SUPPLIES\" - causal chain"]
["flooding within the city causes"]
["contaminated water getting into the drinking water network as well as"]
["significant power outage which means that"]
["drinking water supplies to homes and hospitals is contaminated and/or unavailable"]
["HOW LIKELY DO YOU THINK THIS SCENARIO WILL DEVELOP IN YOUR CITY/REGION?"]
["Highly probable","Probable/Possible ","Improbable ","We don't know","I don't know - someone else does"]

{"sheet":"Community integration","index":9,"n_rows":70,"n_cols":5,"rows_kept":70,"cut":false,"hidden":false,"merged":[[16,0,16,4],[23,0,23,4],[0,0,0,4],[1,0,1,4],[3,0,3,4],[6,0,6,4],[2,0,2,4],[4,0,4,4],[5,0,5,4],[9,0,9,4],[13,0,13,4],[10,0,10,4],[68,0,68,4],[38,0,38,4],[26,0,26,4],[48,0,48,4],[62,0,62,4],[51,0,51,4],[59,0,59,4],[35,0,35,4]]}
["Topic: Community integration"]
["Maximum number of scenarios in this tab: 6"]
["HOW LIKELY DO YOU THINK THIS SCENARIO WILL DEVELOP IN YOUR CITY/REGION AND/OR IS A CONCERN TO YOUR PROJECT?"]
[" \"INCOMING PEOPLE\""]
["Please respond to this scenario by double clicking one of the answers below:"]
["Is your city likely to be subject to increasing immigration that is caused by either war, climate change, or economic factors?"]
["HOW LIKELY DO YOU THINK THIS SCENARIO WILL DEVELOP IN YOUR CITY/REGION?"]
["Highly probable (>60%)","Probable/Possible (20-60%)","Improbable (<20%)","We don't know","I don't know - someone else does"]
[]
["Scenario 1: \"WELFARE SYSTEM\" - causal chain"]
["City is subject to uncontrolled immigration that is caused by either war, climate change, or economic factors which leads to"]
["the welfare system in the city being overwhelmed which results in"]
["lessening of support for the vulnerable groups in the city"]
["HOW LIKELY DO YOU THINK THIS SCENARIO WILL DEVELOP IN YOUR CITY/REGION?"]
["Highly probable","Probable/Possible ","Improbable ","We don't know","I don't know - someone else does"]
[]
["Scenario 2: \"UNREGULATED MIGRANT WORKERS\" - causal chain"]
["city is subject to incoming people that is caused by either war, climate change, or economic factors which causes"]
["an influx of additional  cheap labour into the city that"]
["drives down wages of low-paid workers which leads to "]
["an erosion of workers' rights which means that"]
["the current economic system works for some but not for others which leads to"]
["rising social inequalities"]
["HOW LIKELY DO YOU THINK THIS SCENARIO WILL DEVELOP IN YOUR CITY/REGION?"]
["Highly probable","Probable/Possible ","Improbable ","We don't know","I don't know - someone else does"]
[]
["Scenario 3: \"INTEGRATION\" - vicious cycle"]
["city is subject to incoming people that is caused by either war, climate change, or economic factors causing"]
["incomers experience increasing cultural and language barriers within the city leading to"]
["incomers are subject to growing social and economic tensions and so"]
["the city faces growing problems with the integration of other nationalities causing"]
["citizens losing their trust in the management of public/social services at both national and city levels with"]
["citizens losing their trust in the national and local government and"]
["the city increasingly affected by political instability at national and EU level and so REINFORCING"]
["the city faces growing problems with the integration of other nationalities"]
["HOW LIKELY DO YOU THINK THIS SCENARIO WILL DEVELOP IN YOUR CITY/REGION?"]
["Highly probable","Probable/Possible ","Improbable ","We don't know","I don't know - someone else does"]
[]
["Scenario 4: \"INTEGRATION AND SOCIAL COHESION\" - vicious cycle"]
["extreme' political parties which oppose free movement of people between nations grows stronger and so"]
["city facing growing problems with the integration of newcomers from other nations causing"]
["some groups of incomers establishing new territories for organised crime which leads to"]
["increasing violence in the city AND/OR vulnerable people abused by organised crime and"]
["an increasing FEAR of crime which leads to"]
["incomers subject to growing social and economic tensions and so"]
["decreasing trust between citizens with the consequence of"]
["a reduction of the social cohesion between citizens which REINFORCES"]
["extreme' political parties which oppose free movement between nations growing stronger"]
["HOW LIKELY DO YOU THINK THIS SCENARIO WILL DEVELOP IN YOUR CITY/REGION?"]
["Highly probable","Probable/Possible ","Improbable ","We don't know","I don't know - someone else does"]
[]
["Scenario 5: \"RADICALISM AND EXTREMISM\" - causal chain"]
["incomers experience cultural and language barriers which can mean that"]
["incomers are likely to be lacking in ability to manage social relations with non-migrants which causes"]
["the city is faced with growing cultural and racial tensions which increases"]
["a risk of radicalization and violent extremism causing"]
["increasing European, national and city level political instability and increasing fear of crime which means"]
["a greater danger of citizens taking actions instead of the police and so"]
["increasing likelihood of public unrest in the streets"]
["HOW LIKELY DO YOU THINK THIS SCENARIO WILL DEVELOP IN YOUR CITY/REGION?"]
["Highly probable","Probable/Possible ","Improbable ","We don't know","I don't know - someone else does"]
[]
["Scenario 6: \"COMMUNITIES WITH CONTROLLED ENTRANCES\" - causal chain with vicious cycle"]
["lack of integration of incoming people leads to an increase in "]
["fear of crime which result in an increase in"]
["communities with controlled entrances which separate the rich from the poor REINFORCING"]
["a lack of integration of incoming people and thus "]
["reduced social cohesion"]
["HOW LIKELY DO YOU THINK THIS SCENARIO WILL DEVELOP IN YOUR CITY/REGION?"]
["Highly probable","Probable/Possible ","Improbable ","We don't know","I don't know - someone else does"]

{"sheet":"ScoresRSQ","index":10,"n_rows":127,"n_cols":13,"rows_kept":127,"cut":false,"hidden":true,"merged":[[101,0,109,0],[86,0,91,0],[26,0,38,0],[92,0,100,0],[1,0,10,0],[40,0,49,0],[50,0,62,0],[63,0,73,0],[11,0,25,0],[74,0,85,0]]}
[null,"No","Scenario name","Weight","User's answer [MACRO]","Risk factor","Hide?",null,"Original scenarios","RISK FACTOR","RANK","RANK ref no","Answer REF no"]
["ELDERLY POPULATION",1,"PENSION AGE",3.5,0,{"$f":"IF(E2=0,\"not completed\",IF(E2=2, D2*0.5,IF(E2=3,\"improbable\",IF(E2=5, D2*0.2,D2))))","v":"not completed"},null,null,"PENSION AGE",{"$f":"IF(E2=0,\"not completed\",IF(E2=2, D2*0.5,IF(E2=3,\"improbable\",IF(E2=5, D2*0.2,D2))))","v":"not completed"},{"$f":"IFERROR(RANK(J2,$J$2:$J$69), \"\")","v":""},2,2]
[null,2,"FAMILY MEMBERS CO-LOCATION",4,0,{"$f":"IF(E3=0,\"not completed\",IF(E3=2, D3*0.5,IF(E3=3,\"improbable\",IF(E3=5, D3*0.2,D3))))","v":"not completed"},null,null,"FAMILY MEMBERS CO-LOCATION","not completed",{"$f":"IFERROR(RANK(J3,$J$2:$J$69), \"\")","v":""},3,3]
[null,3,"SINGLE HOUSEHOLDS",4,0,"not completed",null,null,"SINGLE HOUSEHOLDS","not completed",{"$f":"IFERROR(RANK(J4,$J$2:$J$69), \"\")","v":""},4,4]
[null,4,"AGED CITIZENS' FEAR OF CRIME IN THE CITY",4,0,"not completed",null,null,"AGED CITIZENS' FEAR OF CRIME IN THE CITY","not completed",{"$f":"IFERROR(RANK(J5,$J$2:$J$69), \"\")","v":""},5,5]
[null,5,"DIGITAL MARGINALISATION",4,0,"not completed",null,null,"DIGITAL MARGINALISATION","not completed","",6,6]
[null,6,"DEMENTIA AND THE ELDERLY",3.5,0,"not completed",null,null,"DEMENTIA AND THE ELDERLY","not completed","",7,7]
[null,7,"MENTAL HEALTH AND LONELINESS",4,0,"not completed",null,null,"MENTAL HEALTH AND LONELINESS","not completed","",8,8]
[null,8,"ALCOHOL ABUSE",4,0,"not completed",null,null,"ALCOHOL ABUSE","not completed","",9,9]
[null,9,"HEALTHCARE UNDER PRESSURE",4,0,"not completed",null,null,"HEALTHCARE UNDER PRESSURE","not completed","",10,10]
[null,10,"SOCIAL WELFARE AND FAMILY SUPPORT",3.67,0,"not completed",null,null,"SOCIAL WELFARE AND FAMILY SUPPORT","not completed","",11,11]
["SOCIAL COHESION",1,"THE DISENGAGEMENT OF CITIZENS",2.5,0,"not completed",null,null,"THE DISENGAGEMENT OF CITIZENS","not completed","",12,12]
[null,2,"PARTICIPATION IN CIVIL SOCIETY",2.2000000000000002,0,"not completed",null,null,"PARTICIPATION IN CIVIL SOCIETY","not completed","",13,13]
[null,3,"PENSION AGE",3.5,0,"not completed",null,null,"THE TRAP OF FEAR OF CRIME",{"$f":"IF(E18=0,\"not completed\",IF(E18=2, D18*0.5,IF(E18=3,\"improbable\",IF(E18=5, D18*0.2,D18))))","v":"not completed"},"",14,18]
[null,4,"DIGITAL MARGINALISATION",4,0,"not completed",null,null,"INTEGRATION",{"$f":"IF(E20=0,\"not completed\",IF(E20=2, D20*0.5,IF(E20=3,\"improbable\",IF(E20=5, D20*0.2,D20))))","v":"not completed"},"",15,20]
[null,5,"SOCIAL WELFARE AND FAMILY SUPPORT",3.67,0,"not completed",null,null,"INTEGRATION AND SOCIAL COHESION","not completed","",16,21]
[null,6,"FAMILY MEMBERS CO-LOCATION",4,0,"not completed",null,null,"PROGRESSING URBANISATION","not completed","",17,22]
[null,7,"THE TRAP OF FEAR OF CRIME",2,0,"not completed",null,null,"COMMUNITY SPACES","not completed","",18,23]
[null,8,"AGED CITIZENS' FEAR OF CRIME IN THE CITY",4,0,"not completed",null,null,"ACCESS TO SOCIAL ACTIVITIES","not completed","",19,24]
[null,9,"INTEGRATION",3.67,0,"not completed",null,null,"POLLUTION AND CITIZENS SPENDING TIME OUTDOORS","not completed","",20,25]
[null,10,"INTEGRATION AND SOCIAL COHESION",2.33,0,"not completed",null,null,"COMMUNITIES WITH CONTROLLED ENTRANCES","not completed","",21,26]
[null,11,"PROGRESSING URBANISATION",2.33,0,"not completed",null,null,"THE TRAP OF LONELINESS",{"$f":"IF(E28=0,\"not completed\",IF(E28=2, D28*0.5,IF(E28=3,\"improbable\",IF(E28=5, D28*0.2,D28))))","v":"not completed"},"",22,28]
[null,12,"COMMUNITY SPACES",2,0,"not completed",null,null,"ISOLATION OF DISADVANTAGED PEOPLE",{"$f":"IF(E32=0,\"not completed\",IF(E32=2, D32*0.5,IF(E32=3,\"improbable\",IF(E32=5, D32*0.2,D32))))","v":"not completed"},"",23,32]
[null,13,"ACCESS TO SOCIAL ACTIVITIES",2,0,"not completed",null,null,"TRUST",{"$f":"IF(E34=0,\"not completed\",IF(E34=2, D34*0.5,IF(E34=3,\"improbable\",IF(E34=5, D34*0.2,D34))))","v":"not completed"},"",24,34]
[null,14,"POLLUTION AND CITIZENS SPENDING TIME OUTDOORS",3.4,0,"not completed",null,null,"WORKERS' RIGHTS BECOME ERODED",{"$f":"IF(E39=0,\"not completed\",IF(E39=2, D39*0.5,IF(E39=3,\"improbable\",IF(E39=5, D39*0.2,D39))))","v":"not completed"},"",25,39]
[null,15,"COMMUNITIES WITH CONTROLLED ENTRANCES",2,0,"not completed",null,null,"UNEMPLOYMENT",{"$f":"IF(E43=0,\"not completed\",IF(E43=2, D43*0.5,IF(E43=3,\"improbable\",IF(E43=5, D43*0.2,D43))))","v":"not completed"},"",26,43]
["SOCIAL ALIENATION",1,"PROGRESSING URBANISATION",1.5,0,"not completed",null,null,"WORK-RELATED STRESS",{"$f":"IF(E44=0,\"not completed\",IF(E44=2, D44*0.5,IF(E44=3,\"improbable\",IF(E44=5, D44*0.2,D44))))","v":"not completed"},{"$f":"IFERROR(RANK(J27,$J$2:$J$69), \"\")","v":""},27,44]
[null,2,"THE TRAP OF LONELINESS",4,0,"not completed",null,null,"UNREGULATED MIGRANT WORKERS",{"$f":"IF(E46=0,\"not completed\",IF(E46=2, D46*0.5,IF(E46=3,\"improbable\",IF(E46=5, D46*0.2,D46))))","v":"not completed"},"",28,46]
[null,3,"PENSION AGE",3.5,0,"not completed",null,null,"CITIZENS' FINANCIAL DEBT",{"$f":"IF(E47=0,\"not completed\",IF(E47=2, D47*0.5,IF(E47=3,\"improbable\",IF(E47=5, D47*0.2,D47))))","v":"not completed"},"",29,47]
[null,4,"FAMILY MEMBERS CO-LOCATION",4,0,"not completed",null,null,"EDUCATION",{"$f":"IF(E48=0,\"not completed\",IF(E48=2, D48*0.5,IF(E48=3,\"improbable\",IF(E48=5, D48*0.2,D48))))","v":"not completed"},"",30,48]
[null,5,"SINGLE HOUSEHOLDS",4,0,"not completed",null,null,"DRAINAGE SYSTEMS",{"$f":"IF(E51=0,\"not completed\",IF(E51=2, D51*0.5,IF(E51=3,\"improbable\",IF(E51=5, D51*0.2,D51))))","v":"not completed"},"",31,51]
[null,6,"ISOLATION OF DISADVANTAGED PEOPLE",1,0,"not completed",null,null,"FLOODING AND THE EMERGENCY SERVICES","not completed","",32,52]
[null,7,"DIGITAL MARGINALISATION",4,0,"not completed",null,null,"FLOODING AND HOMELESSNESS","not completed","",33,53]
[null,8,"TRUST",2,0,"not completed",null,null,"SKILLED WORKERS AND FLOODING","not completed","",34,54]
[null,9,"THE TRAP OF FEAR OF CRIME",2,0,"not completed",null,null,"LOSS OF ELECTRICITY","not completed","",35,55]
[null,10,"POLLUTION AND CITIZENS SPENDING TIME OUTDOORS",3.4,0,"not completed",null,null,"LOCAL BUSINESSES AND FLOODING","not completed","",36,56]
[null,11,"COMMUNITY SPACES",2,0,"not completed",null,null,"INFORMAL SETTLEMENT IN FLOOD-PRONE AREAS","not completed","",37,57]
[null,12,"ACCESS TO SOCIAL ACTIVITIES",2,0,"not completed",null,null,"LESS PRODUCTIVE FARMING LAND","not completed","",38,58]
[null,13,"WORKERS' RIGHTS BECOME ERODED",1.25,0,"not completed",null,null,"QUALITY OF URBAN GREEN SPACES","not completed","",39,59]
[null,14,"THE DISENGAGEMENT OF CITIZENS",2.5,0,"not completed",null,null,"FLOODING AND SANITATION","not completed","",40,60]
["SOCIAL INEQUALITIES",1,"PARTICIPATION IN CIVIL SOCIETY",2.2000000000000002,0,"not completed",null,null,"DRINKING WATER SUPPLIES","not completed","",41,61]
[null,2,"DEMENTIA AND THE ELDERLY",3.5,0,"not completed",null,null,"SEWAGE SYSTEM","not completed","",42,62]
[null,3,"UNEMPLOYMENT",2,0,"not completed",null,null,"CITIZENS SUFFER FROM LACK OF HOME INSURANCE TO SAVE THEIR ASSETS","not completed","",43,63]
[null,4,"WORK-RELATED STRESS",3.67,0,"not completed",null,null,"COLDER WINTERS AND CLIMATE CHANGE","not completed","",44,64]
[null,5,"WORKERS' RIGHTS BECOME ERODED",1.25,0,"not completed",null,null,"HOTTER, DRIER SUMMERS AND CLIMATE CHANGE","not completed","",45,65]
[null,6,"UNREGULATED MIGRANT WORKERS",2,0,"not completed",null,null,"CITIZENS SUFFER FROM RESPIRATORY DISEASES","not completed","",46,66]
[null,7,"CITIZENS' FINANCIAL DEBT",1.8,0,"not completed",null,null,"TRAFFIC DENSITY AND AIR POLLUTION","not completed","",47,67]
[null,8,"EDUCATION",3,0,"not completed",null,null,"POLLUTION AND PROFESSIONALS AND SKILLED WORKERS",{"$f":"IF(E69=0,\"not completed\",IF(E69=2, D69*0.5,IF(E69=3,\"improbable\",IF(E69=5, D69*0.2,D69))))","v":"not completed"},"",48,69]
[null,9,"PROGRESSING URBANISATION",1.5,0,"not completed",null,null,"POLLUTION AND BUSINESS COMPETETIVENESS","not completed","",49,70]
[null,10,"ISOLATION OF DISADVANTAGED PEOPLE",1,0,"not completed",null,null,"WATER QUALITY","not completed","",50,71]
["FLOODING",1,"DRAINAGE SYSTEMS",5,0,"not completed",null,null,"FARMING AND AIR POLLUTION","not completed","",51,72]
[null,2,"FLOODING AND THE EMERGENCY SERVICES",4.75,0,"not completed",null,null,"THE RAMIFICATIONS OF ACID RAINS IN THE CITY","not completed","",52,73]
[null,3,"FLOODING AND HOMELESSNESS",2,0,"not completed",null,null,"DAMAGE TO INVALUABLE CULTURAL/HISTORICAL ASSETS","not completed","",53,74]
[null,4,"SKILLED WORKERS AND FLOODING",1.66,0,"not completed",null,null,"DRUG AND ALCOHOL ABUSE","not completed",{"$f":"IFERROR(RANK(J54,$J$2:$J$69), \"\")","v":""},54,75]
[null,5,"LOSS OF ELECTRICITY",3,0,"not completed",null,null,"OBESITY","not completed","",55,76]
[null,6,"LOCAL BUSINESSES AND FLOODING",2.2000000000000002,0,"not completed",null,null,"COST OF DELIVERING HEALTHCARE",{"$f":"IF(E78=0,\"not completed\",IF(E78=2, D78*0.5,IF(E78=3,\"improbable\",IF(E78=5, D78*0.2,D78))))","v":"not completed"},"",56,78]
[null,7,"INFORMAL SETTLEMENT IN FLOOD-PRONE AREAS",2,0,"not completed",null,null,"HEALTH INEQUALITIES",{"$f":"IF(E79=0,\"not completed\",IF(E79=2, D79*0.5,IF(E79=3,\"improbable\",IF(E79=5, D79*0.2,D79))))","v":"not completed"},"",57,79]
[null,8,"LESS PRODUCTIVE FARMING LAND",2.5,0,"not completed",null,null,"WELFARE SYSTEM",{"$f":"IF(E87=0,\"not completed\",IF(E87=2, D87*0.5,IF(E87=3,\"improbable\",IF(E87=5, D87*0.2,D87))))","v":"not completed"},"",58,87]
[null,9,"QUALITY OF URBAN GREEN SPACES",2.2000000000000002,0,"not completed",null,null,"RADICALISM AND EXTREMISM",{"$f":"IF(E91=0,\"not completed\",IF(E91=2, D91*0.5,IF(E91=3,\"improbable\",IF(E91=5, D91*0.2,D91))))","v":"not completed"},"",59,91]
[null,10,"FLOODING AND SANITATION",2,0,"not completed",null,null,"CIVIC DISORDER AND THE MEDIA",{"$f":"IF(E93=0,\"not completed\",IF(E93=2, D93*0.5,IF(E93=3,\"improbable\",IF(E93=5, D93*0.2,D93))))","v":"not completed"},"",60,93]
[null,11,"DRINKING WATER SUPPLIES",2.5,0,"not completed",null,null,"GANG WARFARE",{"$f":"IF(E95=0,\"not completed\",IF(E95=2, D95*0.5,IF(E95=3,\"improbable\",IF(E95=5, D95*0.2,D95))))","v":"not completed"},"",61,95]
[null,12,"SEWAGE SYSTEM",5,0,"not completed",null,null,"LOOTING OF SHOPS","not completed","",62,96]
[null,13,"CITIZENS SUFFER FROM LACK OF HOME INSURANCE TO SAVE THEIR ASSETS",2,0,"not completed",null,null,"EMERGENCY SERVICES","not completed","",63,97]
["AIR POLLUTION",1,"COLDER WINTERS AND CLIMATE CHANGE",6,0,"not completed",null,null,"PUBLIC UNREST IN THE STREETS DISRUPTS THE TRANSPORT CRITICAL INFRASTRUCTURE","not completed","",64,98]
[null,2,"HOTTER, DRIER SUMMERS AND CLIMATE CHANGE",6,0,"not completed",null,null,"BUILDINGS, SHOPS AND TRANSPORT","not completed","",65,99]
[null,3,"CITIZENS SUFFER FROM RESPIRATORY DISEASES",2.25,0,"not completed",null,null,"CRIME IN THE CITY","not completed","",66,100]
[null,4,"TRAFFIC DENSITY AND AIR POLLUTION",6,0,{"$f":"IF(E67=0,\"not completed\",IF(E67=2, D67*0.5,IF(E67=3,\"improbable\",IF(E67=5, D67*0.2,D67))))","v":"not completed"},null,null,"TOURISM","not completed",{"$f":"IFERROR(RANK(J67,$J$2:$J$69), \"\")","v":""},67,101]
[null,5,"POLLUTION AND CITIZENS SPENDING TIME OUTDOORS",3.4,0,"not completed",null,null,"DEMAND FOR TEMPORARY HOUSING",{"$f":"IF(E110=0,\"not completed\",IF(E110=2, D110*0.5,IF(E110=3,\"improbable\",IF(E110=5, D110*0.2,D110))))","v":"not completed"},"",68,110]
[null,6,"POLLUTION AND PROFESSIONALS AND SKILLED WORKERS",3.17,0,"not completed",null,null,"LOCAL AUTHORITIES' BUDGET UNDER PRESSURE",{"$f":"IF(E111=0,\"not completed\",IF(E111=2, D111*0.5,IF(E111=3,\"improbable\",IF(E111=5, D111*0.2,D111))))","v":"not completed"},{"$f":"IFERROR(RANK(J69,$J$2:$J$69), \"\")","v":""},69,111]
[null,7,"POLLUTION AND BUSINESS COMPETETIVENESS",2,0,"not completed"]
[null,8,"WATER QUALITY",2.67,0,"not completed",null,null,"types of answers"]
[null,9,"FARMING AND AIR POLLUTION",2.75,0,"not completed",null,null,"0 = no answer"]
[null,10,"THE RAMIFICATIONS OF ACID RAINS IN THE CITY",2.86,0,"not completed",null,null,"1 = highly probable"]
[null,11,"DAMAGE TO INVALUABLE CULTURAL/HISTORICAL ASSETS",2.17,0,"not completed",null,null,"2 = probable/possible"]
["HEALTH",1,"DRUG AND ALCOHOL ABUSE",3,0,"not completed",null,null,"3 = improbable"]
[null,2,"OBESITY",3.5,0,"not completed",null,null,"4 = we don't know"]
[null,3,"CITIZENS SUFFER FROM RESPIRATORY DISEASES",2.25,0,"not completed",null,null,"5 = I don’t know"]
[null,4,"COST OF DELIVERING HEALTHCARE",4,0,"not completed"]
[null,5,"HEALTH INEQUALITIES",2,0,"not completed"]
[null,6,"DEMENTIA AND THE ELDERLY",3.5,0,"not completed"]
[null,7,"MENTAL HEALTH AND LONELINESS",4,0,"not completed"]
[null,8,"HEALTHCARE UNDER PRESSURE",4,0,"not completed"]
[null,9,"WORK-RELATED STRESS",3.66,0,"not completed"]
[null,10,"THE TRAP OF LONELINESS",4,0,"not completed"]
[null,11,"FLOODING AND SANITATION",2,0,"not completed"]
[null,12,"DRINKING WATER SUPPLIES",2.5,0,"not completed"]
["COMMUNITY",1,"WELFARE SYSTEM",3.67,0,"not completed"]
[null,2,"UNREGULATED MIGRANT WORKERS",2,0,"not completed"]
[null,3,"INTEGRATION",3.2,0,"not completed"]
[null,4,"INTEGRATION AND SOCIAL COHESION",2.29,0,"not completed"]
[null,5,"RADICALISM AND EXTREMISM",2.16,0,"not completed"]
[null,6,"COMMUNITIES WITH CONTROLLED ENTRANCES",2,0,"not completed"]
["PUBLIC UNREST",1,"CIVIC DISORDER AND THE MEDIA",2.2000000000000002,0,"not completed"]
[null,2,"RADICALISM AND EXTREMISM",2.17,0,"not completed"]
[null,3,"GANG WARFARE",6,0,"not completed"]
[null,4,"LOOTING OF SHOPS",1,0,"not completed"]
[null,5,"EMERGENCY SERVICES",1,0,"not completed"]
[null,6,"PUBLIC UNREST IN THE STREETS DISRUPTS THE TRANSPORT CRITICAL INFRASTRUCTURE",1,0,"not completed"]
[null,7,"BUILDINGS, SHOPS AND TRANSPORT",1,0,"not completed"]
[null,8,"CRIME IN THE CITY",1,0,"not completed"]
[null,9,"TOURISM",1,0,"not completed"]
["INFRASTRUCTURE",1,"THE RAMIFICATIONS OF ACID RAINS IN THE CITY",2.86,0,"not completed"]
[null,2,"DAMAGE TO INVALUABLE CULTURAL/HISTORICAL ASSETS",2.17,0,"not completed"]
[null,3,"CITIZENS SUFFER FROM LACK OF HOME INSURANCE TO SAVE THEIR ASSETS",2,0,"not completed"]
[null,4,"LOSS OF ELECTRICITY",3,0,"not completed"]
[null,5,"FLOODING AND THE EMERGENCY SERVICES",4.75,0,"not completed"]
[null,6,"LESS PRODUCTIVE FARMING LAND",2.5,0,"not completed"]
[null,7,"DRINKING WATER SUPPLIES",2.5,0,"not completed"]
[null,8,"SEWAGE SYSTEM",5,0,"not completed"]
[null,9,"DEMAND FOR TEMPORARY HOUSING",2.5,0,"not completed"]
[null,10,"LOCAL AUTHORITIES' BUDGET UNDER PRESSURE",1,0,"not completed"]
[null,11,"PUBLIC UNREST IN THE STREETS DISRUPTS THE TRANSPORT CRITICAL INFRASTRUCTURE",1,0,"not completed"]
[null,12,"BUILDINGS, SHOPS AND TRANSPORT",1,0,"not completed"]
[]
[null,null,"HEADING QUESTIONS"]
[null,null,"Elderly population",null,0]
[null,null,"Social cohesion",null,0]
[null,null,"Social alienation",null,0]
[null,null,"Social inequalities",null,0]
[null,null,"Flooding",null,0]
[null,null,"Pollution",null,0]
[null,null,"Health",null,0]
[null,null,"Community",null,0]
[null,null,"Unrest",null,0]
[null,null,"Infrastructure",null,0]
[null,null,null,null,0]
[null,null,null,null,0]

{"sheet":"Public unrest","index":11,"n_rows":85,"n_cols":5,"rows_kept":85,"cut":false,"hidden":false,"merged":[[83,0,83,4],[42,0,42,4],[45,0,45,4],[77,0,77,4],[51,0,51,4],[69,0,69,4],[74,0,74,4],[54,0,54,4],[59,0,59,4],[62,0,62,4],[66,0,66,4],[0,0,0,4],[1,0,1,4],[3,0,3,4],[37,0,37,4],[4,0,4,4],[2,0,2,4],[8,0,8,4],[16,0,16,4],[30,0,30,4],[34,0,34,4],[19,0,19,4],[27,0,27,4]]}
["Topic: Public unrest"]
["Maximum number of scenarios in this tab: 9"]
["HOW LIKELY DO YOU THINK THIS SCENARIO WILL DEVELOP IN YOUR CITY/REGION AND/OR IS A CONCERN TO YOUR PROJECT?"]
["\"PUBLIC UNREST IN THE STREETS\""]
["Please respond to this scenario by double clicking one of the answers below:"]
["The city is subject to public unrest in the streets"]
["Highly probable (>60%)","Probable/Possible (20-60%)","Improbable (<20%)","We don't know","I don't know - someone else does"]
[]
["Scenario 1: \"CIVIC DISORDER AND THE MEDIA\" - vicious cycle"]
["city becomes subject to increasing racial and cultural tensions and so"]
["radicalization and extremism in the city is more likely leading to"]
["more likelihood of civic disorder and public protests with"]
["more likelihood of public unrest in the streets and so"]
["more chance that traditional and social media report different and conflicting information and so"]
["the city becomes exposed to media sensationalism and random allocation of blame, so"]
["RECINFORCING cultural and racial tensions"]
["HOW LIKELY DO YOU THINK THIS SCENARIO WILL DEVELOP IN YOUR CITY/REGION?"]
["Highly probable","Probable/Possible ","Improbable ","We don't know","I don't know - someone else does"]
[]
["Scenario 2: \"RADICALISM AND EXTREMISM\" - causal chain"]
["incomers experience cultural and language barriers which can mean that"]
["incomers are likely to be lacking in ability to manage social relations with non-migrants which causes"]
["the city is faced with growing cultural and racial tensions which increases"]
["a risk of radicalization and violent extremism causing"]
["increasing European, national and city level political instability and increasing fear of crime which means"]
["a greater danger of citizens taking actions instead of the police and so"]
["increasing likelihood of public unrest in the streets"]
["HOW LIKELY DO YOU THINK THIS SCENARIO WILL DEVELOP IN YOUR CITY/REGION?"]
["Highly probable","Probable/Possible ","Improbable ","We don't know","I don't know - someone else does"]
[]
["Scenario 3: \"GANG WARFARE\" - vicious cycle"]
["increasing likelihood of public unrest in the streets means that"]
["criminals promote gang warfare, and existing gangs use as an opportunity for gang warfare, and so"]
["public unrest in the streets is REINFORCED and might become more common"]
["HOW LIKELY DO YOU THINK THIS SCENARIO WILL DEVELOP IN YOUR CITY/REGION?"]
["Highly probable","Probable/Possible ","Improbable ","We don't know","I don't know - someone else does"]
[]
["Scenario 4: \"LOOTING OF SHOPS\" - causal chain"]
["public unrest in the streets means that"]
["shops become looted and so"]
["shop shelves become cleared of goods with"]
["the city to unable function properly"]
["HOW LIKELY DO YOU THINK THIS SCENARIO WILL DEVELOP IN YOUR CITY/REGION?"]
["Highly probable","Probable/Possible ","Improbable ","We don't know","I don't know - someone else does"]
[]
["Scenario 5: \"EMERGENCY SERVICES\" - vicious cycle"]
["public unrest in the streets means that"]
["emergency staff who are trying to assist with the crisis become injured and"]
["the functioning of the emergency services becomes under pressure and so"]
["the city is less able effectively to manage the crisis and so there is"]
["an increased likelihood of emergency staff (and others) becoming injured"]
["HOW LIKELY DO YOU THINK THIS SCENARIO WILL DEVELOP IN YOUR CITY/REGION?"]
["Highly probable","Probable/Possible ","Improbable ","We don't know","I don't know - someone else does"]
[]
["Scenario 6: \"TRANSPORT CRITICAL INFRASTRUCTURE\"  - causal chain"]
["public unrest in the streets means that"]
["there may be disruption to the local transportation system AND/OR"]
["damage to transport infrastructure which can then"]
["impact and overload public and private transport in the wider region"]
["HOW LIKELY DO YOU THINK THIS SCENARIO WILL DEVELOP IN YOUR CITY/REGION?"]
["Highly probable","Probable/Possible ","Improbable ","We don't know","I don't know - someone else does"]
[]
["Scenario 7: \"BUILDINGS, SHOPS AND TRANSPORT\" - causal chain"]
["public unrest in the streets means that"]
["there may be damage to buildings and disruption to the transport system and thus"]
["the general functioning of the city is significantly disrupted"]
["HOW LIKELY DO YOU THINK THIS SCENARIO WILL DEVELOP IN YOUR CITY/REGION?"]
["Highly probable","Probable/Possible ","Improbable ","We don't know","I don't know - someone else does"]
[]
["Scenario 8: \"CRIME IN THE CITY\" - causal chain"]
["an increased concern about public unrest means that"]
["citizens become more fearful of crime in the city and so"]
["citizens demand liberalisation of firearms and other weapons to protect themselves with the consequence of"]
["an increased likelihood of crime growing in the city"]
["HOW LIKELY DO YOU THINK THIS SCENARIO WILL DEVELOP IN YOUR CITY/REGION?"]
["Highly probable","Probable/Possible ","Improbable ","We don't know","I don't know - someone else does"]
[]
["Scenario 9: \"TOURISM\" - causal chain"]
["increased likelihood of public unrest in the street means that"]
["traditional media and social media becoming exposed to sensationalism and false blame being allocated and so"]
["the reputation of the city is severely damaged and so"]
["tourism to the city suffers and"]
["the local economy incurs significant losses"]
["HOW LIKELY DO YOU THINK THIS SCENARIO WILL DEVELOP IN YOUR CITY/REGION?"]
["Highly probable","Probable/Possible ","Improbable ","We don't know","I don't know - someone else does"]

{"sheet":"Critical infrastructure","index":12,"n_rows":123,"n_cols":5,"rows_kept":123,"cut":false,"hidden":false,"merged":[[109,0,109,4],[86,0,86,4],[93,0,93,4],[96,0,96,4],[5,0,5,4],[6,0,6,4],[9,0,9,4],[17,0,17,4],[20,0,20,4],[77,0,77,4],[83,0,83,4],[69,0,69,4],[74,0,74,4],[28,0,28,4],[0,0,0,4],[1,0,1,4],[2,0,2,4],[3,0,3,4],[4,0,4,4],[117,0,117,4],[121,0,121,4],[31,0,31,4],[32,0,32,4],[33,0,33,4],[66,0,66,4],[114,0,114,4],[36,0,36,4],[42,0,42,4],[45,0,45,4],[50,0,50,4],[53,0,53,4],[58,0,58,4],[61,0,61,4],[102,0,102,4],[105,0,105,4]]}
["Topic: Critical infrastructure"]
["Maximum number of scenarios in this tab: 12"]
["HOW LIKELY DO YOU THINK THIS SCENARIO WILL DEVELOP IN YOUR CITY/REGION AND/OR IS A CONCERN TO YOUR PROJECT?"]
["\"AIR POLLUTION\""]
["Please respond to this scenario by double clicking one of the answers below:"]
["Is your city subject to increasing air pollution?"]
["HOW LIKELY DO YOU THINK THIS SCENARIO WILL DEVELOP IN YOUR CITY/REGION?"]
["Highly probable (>60%)","Probable/Possible (20-60%)","Improbable (<20%)","We don't know","I don't know - someone else does"]
[]
["Scenario 1: \"THE RAMIFICATIONS OF ACID RAINS IN THE CITY\" - causal chain"]
["city is subject to unacceptable increases in air pollution which may cause"]
["acid rain which can lead to "]
["a decline in soil health which may have a "]
["negative impact on animals/biodviersity in general, including a"]
["negative impact on biodiversity in urban green spaces which results in"]
["declining quality and availability of community spaces which contribute to"]
["neighbourhood decline"]
["HOW LIKELY DO YOU THINK THIS SCENARIO WILL DEVELOP IN YOUR CITY/REGION?"]
["Highly probable","Probable/Possible ","Improbable ","We don't know","I don't know - someone else does"]
[]
["Scenario 2: \"DAMAGE TO INVALUABLE CULTURAL/HISTORICAL ASSETS\" - causal chain"]
["city is subject to unacceptable increases in air pollution which may cause"]
["acid rain which can lead to "]
["damage to invaluable cultural/historical assets then "]
["a city's reputation can be severly damaged which will place"]
["increased pressure on authorites to act and, as a result,"]
["the city may spend money on the crisis highiglighted by the media rather than on on infrastructure which may mean that "]
["the city is unable to deal effectively with shocks that impact infrastructure"]
["HOW LIKELY DO YOU THINK THIS SCENARIO WILL DEVELOP IN YOUR CITY/REGION?"]
["Highly probable","Probable/Possible ","Improbable ","We don't know","I don't know - someone else does"]
[]
["\"FLOODING\""]
["is flooding from coastal, river or surface water likely to occur in your city?"]
["HOW LIKELY DO YOU THINK THIS SCENARIO WILL DEVELOP IN YOUR CITY/REGION?"]
["Highly probable","Probable/Possible ","Improbable ","We don't know","I don't know - someone else does"]
[]
["Scenario 3: \"LACK OF HOME INSURANCE\" - causal chain"]
["city is subject to a greater likelihood of severe flooding which means that"]
["properties may be permanently damaged which could mean there are"]
["high costs associated with recovering high value assets which could result in"]
["increased insurance premiums for citizens in risk areas and thus"]
["people may not be able to get, or afford, home insurance which puts their homes at risk"]
["HOW LIKELY DO YOU THINK THIS SCENARIO WILL DEVELOP IN YOUR CITY/REGION?"]
["Highly probable","Probable/Possible ","Improbable ","We don't know","I don't know - someone else does"]
[]
["Scenario 4: \"LOSS OF ELECTRICITY\" - causal chain"]
["city is overwhelmed by flooding"]
["damages power plants in the city/region and thus leads to"]
["loss of power in the electrical network in the city/region thereby"]
["vulnerable people at increased risk"]
["HOW LIKELY DO YOU THINK THIS SCENARIO WILL DEVELOP IN YOUR CITY/REGION?"]
["Highly probable","Probable/Possible ","Improbable ","We don't know","I don't know - someone else does"]
[]
["Scenario 5: \"FLOODING AND THE EMERGENCY SERVICES\" - causal chain"]
["flooding disrupts the transportation system and also causes"]
["an increased number of traffic accidents in the region which also"]
["constrains the mobility of citizens and emergency services thus"]
["delay to emergency evacuation"]
["HOW LIKELY DO YOU THINK THIS SCENARIO WILL DEVELOP IN YOUR CITY/REGION?"]
["Highly probable","Probable/Possible ","Improbable ","We don't know","I don't know - someone else does"]
[]
["Scenario 6: \"LESS PRODUCTIVE FARMING LAND\" - causal chain"]
["city is overwhelmed by flooding causes"]
["long-term decline in soil health in the city/region which means"]
["less high arable crop land and less high productivity pastures for farming with"]
["reduced local food production in the region"]
["HOW LIKELY DO YOU THINK THIS SCENARIO WILL DEVELOP IN YOUR CITY/REGION?"]
["Highly probable","Probable/Possible ","Improbable ","We don't know","I don't know - someone else does"]
[]
["Scenario 7: \"DRINKING WATER SUPPLIES\" - causal chain"]
["flooding within the city causes"]
["contaminated water getting into the drinking water network as well as"]
["significant power outage which means that"]
["drinking water supplies to homes and hospitals is contaminated and/or unavailable"]
["HOW LIKELY DO YOU THINK THIS SCENARIO WILL DEVELOP IN YOUR CITY/REGION?"]
["Highly probable","Probable/Possible ","Improbable ","We don't know","I don't know - someone else does"]
[]
["Scenario 8: \"SEWAGE SYSTEM\" - causal chain"]
["flooding within the city causes"]
["a lot of water to float on the ground because the drainage system does not have sufficient capacity and  REINFORCING"]
["flooding, particularly in low-rise buildings which means"]
["the sewage system becomes filled with loosened materials (such as tarmac, plants, rocks, paving slabs, trees) causing"]
["long term damage to the sewage system"]
["HOW LIKELY DO YOU THINK THIS SCENARIO WILL DEVELOP IN YOUR CITY/REGION?"]
["Highly probable","Probable/Possible ","Improbable ","We don't know","I don't know - someone else does"]
[]
["Scenario 9: \"DEMAND FOR TEMPORARY HOUSING\" - causal chain"]
["there is increasing local unemployment AND/OR"]
["a national reduction in social welfare, which means "]
["both rising personal debt and an inability to pay mortgages and other loans, and so"]
["increasing loss of property ownership with a consequential"]
["increase in a local renting and loaning society and so"]
["an increased demand for temporary housing and concomitant 'street living'"]
["HOW LIKELY DO YOU THINK THIS SCENARIO WILL DEVELOP IN YOUR CITY/REGION?"]
["Highly probable","Probable/Possible ","Improbable ","We don't know","I don't know - someone else does"]
[]
["Scenario 10: \"LOCAL AUTHORITIES' BUDGET UNDER PRESSURE\" - vicious cycle"]
["local authority budgets are under pressure which means "]
["a reduction in money being spent on maintenance activities which causes"]
["increased degradation in assets which can result in"]
["an increase in future maintenance activites which causes"]
["further pressure on local authority budgets"]
["HOW LIKELY DO YOU THINK THIS SCENARIO WILL DEVELOP IN YOUR CITY/REGION?"]
["Highly probable","Probable/Possible ","Improbable ","We don't know","I don't know - someone else does"]
[]
[" \"PUBLIC UNREST IN THE STREETS\""]
["the city is subject to public unrest in the streets"]
["Highly probable","Probable/Possible ","Improbable ","We don't know","I don't know - someone else does"]
[]
["Scenario 11: \"TRANSPORT CRITICAL INFRASTRUCTURE\"  - causal chain"]
["public unrest in the streets means that"]
["there may be disruption to the local transportation system AND/OR"]
["damage to transport infrastructure which can then"]
["impact and overload public and private transport in the wider region"]
["HOW LIKELY DO YOU THINK THIS SCENARIO WILL DEVELOP IN YOUR CITY/REGION?"]
["Highly probable","Probable/Possible ","Improbable ","We don't know","I don't know - someone else does"]
[]
["Scenario 12: \"BUILDINGS, SHOPS AND TRANSPORT\" - causal chain"]
["public unrest in the streets means that"]
["there may be damage to buildings and disruption to the transport system and thus"]
["the general functioning of the city is significantly disrupted"]
["HOW LIKELY DO YOU THINK THIS SCENARIO WILL DEVELOP IN YOUR CITY/REGION?"]
["Highly probable","Probable/Possible ","Improbable ","We don't know","I don't know - someone else does"]

{"sheet":"Comments","index":13,"n_rows":101,"n_cols":9,"rows_kept":101,"cut":false,"hidden":false,"merged":[[100,8,100,11],[101,8,101,11],[29,0,29,3],[30,0,30,3],[29,4,29,7],[30,4,30,7],[2,0,2,11],[3,8,3,11],[4,8,4,11],[5,0,5,3],[5,4,5,7],[6,0,6,3],[6,4,6,7],[4,0,4,3],[4,4,4,7],[3,0,3,3],[3,4,3,7],[5,8,5,11],[7,0,7,3],[7,4,7,7],[6,8,6,11],[8,0,8,3],[8,4,8,7],[14,0,14,3],[14,4,14,7],[14,8,14,11],[7,8,7,11],[9,0,9,3],[9,4,9,7],[8,8,8,11],[10,0,10,3],[10,4,10,7],[15,0,15,3],[15,4,15,7],[15,8,15,11],[11,0,11,11],[12,0,12,3],[12,4,12,7],[12,8,12,11],[13,0,13,3],[13,4,13,7],[13,8,13,11],[20,0,20,11],[21,0,21,3],[21,4,21,7],[21,8,21,11],[22,0,22,3],[22,4,22,7],[22,8,22,11],[16,0,16,3],[16,4,16,7],[17,0,17,3],[17,4,17,7],[16,8,16,11],[18,0,18,3],[17,8,17,11],[19,0,19,3],[18,4,18,7],[19,4,19,7],[18,8,18,11],[19,8,19,11],[25,0,25,3],[25,4,25,7],[25,8,25,11],[26,0,26,3],[26,4,26,7],[26,8,26,11],[23,0,23,3],[23,4,23,7],[23,8,23,11],[24,0,24,3],[24,4,24,7],[24,8,24,11],[31,0,31,11],[32,0,32,3],[32,4,32,7],[32,8,32,11],[33,0,33,3],[33,4,33,7],[33,8,33,11],[27,0,27,3],[27,4,27,7],[28,0,28,3],[28,4,28,7],[42,0,42,11],[43,0,43,3],[45,0,45,3],[43,4,43,7],[44,0,44,3],[46,0,46,3],[44,4,44,7],[34,0,34,3],[34,4,34,7],[35,0,35,3],[35,4,35,7],[43,8,43,11],[44,8,44,11],[34,8,34,11],[35,8,35,11],[36,0,36,3],[37,0,37,3],[36,4,36,7],[37,4,37,7],[36,8,36,11],[37,8,37,11],[38,0,38,3],[39,0,39,3],[38,4,38,7],[49,0,49,11],[50,0,50,3],[50,4,50,7],[50,8,50,11],[45,4,45,7],[45,8,45,11],[47,0,47,3],[46,4,46,7],[46,8,46,11],[48,0,48,3],[53,0,53,3],[53,4,53,7],[53,8,53,11],[54,0,54,3],[54,4,54,7],[51,0,51,3],[51,4,51,7],[51,8,51,11],[52,0,52,3],[52,4,52,7],[52,8,52,11],[54,8,54,11],[60,0,60,3],[60,4,60,7],[60,8,60,11],[61,0,61,3],[61,4,61,7],[61,8,61,11],[55,0,55,3],[55,4,55,7],[58,0,58,11],[59,0,59,3],[59,4,59,7],[59,8,59,11],[55,8,55,11],[57,0,57,3],[56,4,56,7],[57,4,57,7],[56,0,56,3],[88,0,88,3],[88,4,88,7],[85,0,85,3],[85,4,85,7],[85,8,85,11],[86,0,86,3],[86,4,86,7],[86,8,86,11],[83,0,83,3],[83,4,83,7],[83,8,83,11],[84,0,84,3],[84,4,84,7],[84,8,84,11],[87,0,87,3],[87,4,87,7],[87,8,87,11],[88,8,88,11],[82,0,82,11],[73,0,73,3],[73,4,73,7],[73,8,73,11],[74,0,74,3],[74,4,74,7],[77,4,77,7],[77,8,77,11],[79,0,79,3],[79,4,79,7],[79,8,79,11],[80,0,80,3],[81,0,81,3],[72,4,72,7],[78,0,78,3],[72,8,72,11],[76,0,76,3],[77,0,77,3],[76,4,76,7],[78,4,78,7],[78,8,78,11],[75,8,75,11],[68,8,68,11],[62,0,62,3],[62,4,62,7],[62,8,62,11],[63,0,63,3],[63,4,63,7],[63,8,63,11],[65,0,65,3],[66,0,66,3],[65,4,65,7],[66,4,66,7],[65,8,65,11],[66,8,66,11],[39,4,39,7],[38,8,38,11],[39,8,39,11],[76,8,76,11],[75,0,75,3],[75,4,75,7],[74,8,74,11],[64,0,64,3],[64,4,64,7],[64,8,64,11],[69,0,69,11],[70,0,70,3],[70,4,70,7],[70,8,70,11],[67,0,67,3],[68,0,68,3],[67,4,67,7],[68,4,68,7],[71,0,71,3],[71,4,71,7],[71,8,71,11],[72,0,72,3],[67,8,67,11],[40,0,40,3],[91,0,91,11],[92,0,92,3],[92,4,92,7],[92,8,92,11],[93,0,93,3],[93,4,93,7],[93,8,93,11],[94,0,94,3],[94,4,94,7],[94,8,94,11],[41,0,41,3],[89,0,89,3],[90,0,90,3],[27,8,27,11],[28,8,28,11],[100,4,100,7],[101,4,101,7],[100,0,100,3],[101,0,101,3],[98,8,98,11],[99,8,99,11],[98,0,98,3],[98,4,98,7],[99,0,99,3],[99,4,99,7],[95,0,95,3],[95,4,95,7],[95,8,95,11],[96,0,96,3],[96,4,96,7],[96,8,96,11],[97,0,97,3],[97,4,97,7],[97,8,97,11]]}
["Navigation"]
["User's comments"]
["ELDERLY POPULATION"]
["\"AGEING\"",null,null,null,"Scenario 1: \"PENSION AGE\"",null,null,null,"Scenario 2: \"FAMILY MEMBERS CO-LOCATION\""]
[]
["Scenario 3: \"SINGLE HOUSEHOLDS\"",null,null,null,"Scenario 4: \"AGED CITIZENS' FEAR OF CRIME IN THE CITY\"",null,null,null,"Scenario 5: \"DIGITAL MARGINALISATION\""]
[]
["Scenario 6: \"DEMENTIA AND THE ELDERLY\"",null,null,null,"Scenario 7: \"MENTAL HEALTH AND LONELINESS\"",null,null,null,"Scenario 8: \"ALCOHOL ABUSE\""]
[]
["Scenario 9: \"HEALTHCARE UNDER PRESSURE\"",null,null,null,"Scenario 10: \"SOCIAL WELFARE AND FAMILY SUPPORT\""]
[]
["CLIMATE CHANGE: AIR POLLUTION"]
["\"AIR POLLUTION\"",null,null,null,"Scenario 1: \"COLDER WINTERS AND CLIMATE CHANGE\"",null,null,null,"Scenario 2: \"HOTTER, DRIER SUMMERS AND CLIMATE CHANGE\""]
[]
["Scenario 3: \"RESPIRATORY DISEASE\"",null,null,null,"Scenario 4: \"TRAFFIC DENSITY AND AIR POLLUTION\"",null,null,null,"Scenario 5: \"POLLUTION AND CITIZENS SPENDING TIME OUTDOORS\""]
[]
["Scenario 6: \"POLLUTION AND PROFESSIONALS AND SKILLED WORKERS\"",null,null,null,"Scenario 7: \"POLLUTION AND BUSINESS COMPETETIVENESS\"",null,null,null,"Scenario 8: \"WATER QUALITY\""]
[]
["Scenario 9: \"FARMING AND AIR POLLUTION\"",null,null,null,"Scenario 10: \"THE RAMIFICATIONS OF ACID RAINS IN THE CITY\" ",null,null,null,"Scenario 11: \"DAMAGE TO INVALUABLE CULTURAL/HISTORICAL ASSETS\""]
[]
["CLIMATE CHANGE: FLOODING"]
["\"FLOODING\"",null,null,null,"Scenario 1: \"DRAINAGE SYSTEMS\"",null,null,null,"Scenario 2: \"FLOODING AND THE EMERGENCY SERVICES\""]
[]
["Scenario 3: \"FLOODING AND HOMELESSNESS\"",null,null,null,"Scenario 4: \"SKILLED WORKERS AND FLOODING\"",null,null,null,"Scenario 5: \"LOSS OF ELECTRICITY\""]
[]
["Scenario 6: \"LOCAL BUSINESSESS AND FLOODING\"",null,null,null,"Scenario 7: \"INFORMAL SETTLEMENTS IN FLOOD-PRONE AREAS\"",null,null,null,"Scenario 8: \"LESS PRODUCTIVE FARMING LAND\""]
[]
["Scenario 9: \"QUALITY OF URBAN GREEN SPACE\"",null,null,null,"Scenario 10: \"FLOODING AND SANITATION\"",null,null,null,"Scenario 11: \"DRINKING WATER SUPPLIES\""]
[]
["Scenario 12: \"SEWAGE SYSTEM\"",null,null,null,"Scenario 13: \"LACK OF HOME INSURANCE\""]
[]
["HEALTH"]
["\"CITY'S HEALTH\"",null,null,null,"Scenario 1: \"DRUG AND ALCOHOL ABUSE\"",null,null,null,"Scenario 2: \"OBESITY\" "]
[]
["Scenario 3: \"RESPIRATORY DISEASE” ",null,null,null,"Scenario 4: \"COSTS OF DELIVERING HEALTHCARE\"",null,null,null,"Scenario 5: \"HEALTH INEQUALITIES\""]
[]
["Scenario 6: \"DEMENTIA AND THE ELDERLY\"",null,null,null,"Scenario 7: \"MENTAL HEALTH AND LONELINESS\"",null,null,null,"Scenario 8: \"HEALTHCARE UNDER PRESSURE\""]
[]
["Scenario 9: \"WORK-RELATED STRESS\" ",null,null,null,"Scenario 10: \"THE TRAP OF LONELINESS\" ",null,null,null,"Scenario 11: \"FLOODING AND SANITATION\""]
[]
["Scenario 12: \"DRINKING WATER SUPPLIES\""]
[]
["COMMUNITY INTEGRATION"]
["\"INCOMING PEOPLE\"",null,null,null,"Scenario 1: \"WELFARE SYSTEM\"",null,null,null,"Scenario 2: \"UNREGULATED MIGRANT WORKERS\""]
[]
["Scenario 3: \"INTEGRATION\"",null,null,null,"Scenario 4: \"INTEGRATION AND SOCIAL COHESION\"",null,null,null,"Scenario 5: \"RADICALISM AND EXTREMISM\""]
[]
["Scenario 6: \"COMMUNITIES WITH CONTROLLED ENTRANCES\""]
[]
["INEQUALITIES"]
["\"RISING INEQUALITIES\"",null,null,null,"Scenario 1: \"PARTICIPATION IN CIVIL SOCIETY\"",null,null,null,"Scenario 2: \"DEMENTIA AND THE ELDERLY\""]
[]
["Scenario 3: \"UNEMPLOYMENT\"",null,null,null,"Scenario 4: \"WORK-RELATED STRESS\"",null,null,null,"Scenario 5: \"WORKERS' RIGHTS BECOME ERODED\""]
[]
["Scenario 6: \"UNREGULATED MIGRANT WORKERS\"",null,null,null,"Scenario 7: \"CITIZENS' FINANCIAL DEBT\"",null,null,null,"Scenario 8: \"EDUCATION\""]
[]
["Scenario 9: \"PROGRESSING URBANISATION\"",null,null,null,"Scenario 10: \"ISOLATION OF DISADVANTAGED PEOPLE\""]
[]
["SOCIAL ALIENATION"]
["\"SOCIAL ALIENATION\"",null,null,null,"Scenario 1: \"PROGRESSING URBANISATION\"",null,null,null,"Scenario 2: \"THE TRAP OF LONELINESS\" "]
[]
["Scenario 3: \"PENSION AGE\"",null,null,null,"Scenario 4:  \"FAMILY MEMBERS CO-LOCATION\"",null,null,null,"Scenario 5: \"SINGLE HOUSEHOLDS\""]
[]
["Scenario 6: \"ISOLATION OF DISADVANTAGED PEOPLE\" ",null,null,null,"Scenario 7: \"DIGITAL MARGINALISATION\" ",null,null,null,"Scenario 8: \"TRUST\""]
[]
["Scenario 9: \"THE TRAP OF FEAR OF CRIME\"",null,null,null,"Scenario 10: \"POLLUTION AND CITIZENS SPENDING TIME OUTDOORS\" ",null,null,null,"Scenario 11: \"COMMUNITY SPACES\""]
[]
["Scenario 12: \"ACCESS TO SOCIAL ACTIVITIES\"",null,null,null,"Scenario 13: \"WORKERS' RIGHTS BECOME ERODED\"",null,null,null,"Scenario 14: \"THE DISENGAGEMENT OF CITIZENS\""]
[]
["SOCIAL COHESION"]
["\"REDUCED SOCIAL COHESION\"",null,null,null,"Scenario 1: \"THE DISENGAGEMENT OF CITIZENS\"",null,null,null,"Scenario 2: \"PARTICIPATION IN CIVIL SOCIETY\" "]
[]
["Scenario 3: \"PENSION AGE\" ",null,null,null,"Scenario 4: \"DIGITAL MARGINALISATION\" ",null,null,null,"Scenario 5: \"SOCIAL WELFARE AND FAMILY SUPPORT\""]
[]
["Scenario 6: \"FAMILY MEMBERS CO-LOCATION\" ",null,null,null,"Scenario 7: \"THE TRAP OF FEAR OF CRIME\" ",null,null,null,"Scenario 8: \"AGED CITIZENS' FEAR OF CRIME IN THE CITY\" "]
[]
["Scenario 9: \"INTEGRATION\"",null,null,null,"Scenario 10: \"INTEGRATION AND SOCIAL COHESION\"",null,null,null,"Scenario 11: \"PROGRESSING URBANISATION\" "]
[]
["Scenario 12: \"COMMUNITY SPACES\" ",null,null,null,"Scenario 13: \"ACCESS TO SOCIAL ACTIVITIES\" ",null,null,null,"Scenario 14: \"POLLUTION AND CITIZENS SPENDING TIME OUTDOORS\"  "]
[]
["Scenario 15: \"COMMUNITIES WITH CONTROLLED ENTRANCES\"  "]
[]
["PUBLIC UNREST"]
["\"PUBLIC UNREST IN THE STREETS\"",null,null,null,"Scenario 1: \"CIVIC DISORDER AND THE MEDIA\"",null,null,null,"Scenario 2: \"RADICALISM AND EXTREMISM\""]
[]
["Scenario 3: \"GANG WARFARE\"",null,null,null,"Scenario 4: \"LOOTING OF SHOPS\"",null,null,null,"Scenario 5: \"EMERGENCY SERVICES\""]
[]
["Scenario 6: \"TRANSPORT CRITICAL INFRASTRUCTURE\"",null,null,null,"Scenario 7: \"BUILDINGS, SHOPS AND TRANSPORT\"",null,null,null,"Scenario 8: \"CRIME IN THE CITY\""]
[]
["Scenario 9: \"TOURISM\""]
[]
["CRITICAL INFRASTRUCTURE"]
["\"AIR POLLUTION\"",null,null,null,"Scenario 1: \"THE RAMIFICATIONS OF ACID RAINS IN THE CITY\"",null,null,null,"Scenario 2: \"DAMAGE TO INVALUABLE CULTURAL/HISTORICAL ASSETS\""]
[]
["\"FLOODING\"",null,null,null,"Scenario 3: \"LACK OF HOME INSURANCE\"",null,null,null,"Scenario 4: \"ELECTRICAL NETWORKS OVERWHELMED\""]
[]
["Scenario 5: \"FLOODING AND THE EMERGENCY SERVICES\"",null,null,null,"Scenario 6: \"LESS PRODUCTIVE FARMING LAND\"",null,null,null,"Scenario 7: \"DRINKING WATER SUPPLIES\""]
[]
["Scenario 8: \"SEWAGE SYSTEM\"",null,null,null,"Scenario 9: \"DEMAND FOR TEMPORARY HOUSING\"",null,null,null,"Scenario 10: \"LOCAL AUTHORITIES' BUDGET UNDER PRESSURE\""]
[]
["\"PUBLIC UNREST IN THE STREETS\"",null,null,null,"Scenario 11: \"TRANSPORT CRITICAL INFRASTRUCTURE\"",null,null,null,"Scenario 12: \"BUILDINGS, SHOPS AND TRANSPORT\""]

{"sheet":"Priorities","index":14,"n_rows":72,"n_cols":18,"rows_kept":72,"cut":false,"hidden":false,"merged":[]}
["Sort by:"]
["PRIORITY RANKING OF ALL SCENARIOS"]
["Numbers in brackets under the TOPIC column below signify scenario numbers"]
["SCENARIO","TOPIC","USER ANSWER","PRIORITY",null,"1st sort","ANSWER REF","EL","SC","SA","SI","FL","AP","H","INT","PU","CI","USER PRIORITY"]
["TRAFFIC DENSITY AND AIR POLLUTION","pollution(4)",{"$f":"IF(G5=0, \"not completed\",IF(G5=1, \"highly probable\",IF(G5=2, \"probable\", IF(G5=3, \"improbable\", IF(G5=4, \"we don't know\", \"I don't know\")))))","v":"not completed"},{"$f":"ScoresRSQ!K47","v":""},null,{"$f":"IF(G5=0,2,IF(G5=3,1,0))","v":2},{"$f":"ScoresRSQ!E67","v":0},null,null,null,null,null,1]
["COLDER WINTERS AND CLIMATE CHANGE","pollution(1)",{"$f":"IF(G6=0, \"not completed\",IF(G6=1, \"highly probable\",IF(G6=2, \"probable\", IF(G6=3, \"improbable\", IF(G6=4, \"we don't know\", \"I don't know\")))))","v":"not completed"},{"$f":"ScoresRSQ!K44","v":""},null,{"$f":"IF(G6=0,2,IF(G6=3,1,0))","v":2},{"$f":"ScoresRSQ!E64","v":0},null,null,null,null,null,1]
["HOTTER, DRIER SUMMERS AND CLIMATE CHANGE","pollution(2)",{"$f":"IF(G7=0, \"not completed\",IF(G7=1, \"highly probable\",IF(G7=2, \"probable\", IF(G7=3, \"improbable\", IF(G7=4, \"we don't know\", \"I don't know\")))))","v":"not completed"},{"$f":"ScoresRSQ!K45","v":""},null,{"$f":"IF(G7=0,2,IF(G7=3,1,0))","v":2},{"$f":"ScoresRSQ!E65","v":0},null,null,null,null,null,1]
["DRAINAGE SYSTEMS","flooding(1)",{"$f":"IF(G8=0, \"not completed\",IF(G8=1, \"highly probable\",IF(G8=2, \"probable\", IF(G8=3, \"improbable\", IF(G8=4, \"we don't know\", \"I don't know\")))))","v":"not completed"},{"$f":"ScoresRSQ!K31","v":""},null,{"$f":"IF(G8=0,2,IF(G8=3,1,0))","v":2},{"$f":"ScoresRSQ!E51","v":0},null,null,null,null,1]
["FLOODING AND THE EMERGENCY SERVICES","flooding(2)/infrastructure(5)",{"$f":"IF(G9=0, \"not completed\",IF(G9=1, \"highly probable\",IF(G9=2, \"probable\", IF(G9=3, \"improbable\", IF(G9=4, \"we don't know\", \"I don't know\")))))","v":"not completed"},{"$f":"ScoresRSQ!K32","v":""},null,{"$f":"IF(G9=0,2,IF(G9=3,1,0))","v":2},{"$f":"ScoresRSQ!E52","v":0},null,null,null,null,1,null,null,null,null,1]
["AGED CITIZENS' FEAR OF CRIME IN THE CITY","elderly(4)/cohesion(8)",{"$f":"IF(G10=0, \"not completed\",IF(G10=1, \"highly probable\",IF(G10=2, \"probable\", IF(G10=3, \"improbable\", IF(G10=4, \"we don't know\", \"I don't know\")))))","v":"not completed"},{"$f":"ScoresRSQ!K5","v":""},null,{"$f":"IF(G10=0,2,IF(G10=3,1,0))","v":2},{"$f":"ScoresRSQ!E5","v":0},1,1]
["DIGITAL MARGINALISATION","elderly(5)/cohesion(4)/alienation(7)",{"$f":"IF(G11=0, \"not completed\",IF(G11=1, \"highly probable\",IF(G11=2, \"probable\", IF(G11=3, \"improbable\", IF(G11=4, \"we don't know\", \"I don't know\")))))","v":"not completed"},{"$f":"ScoresRSQ!K6","v":""},null,{"$f":"IF(G11=0,2,IF(G11=3,1,0))","v":2},{"$f":"ScoresRSQ!E6","v":0},1,1,1]
["HEALTHCARE UNDER PRESSURE","elderly(9)/health(8)",{"$f":"IF(G12=0, \"not completed\",IF(G12=1, \"highly probable\",IF(G12=2, \"probable\", IF(G12=3, \"improbable\", IF(G12=4, \"we don't know\", \"I don't know\")))))","v":"not completed"},{"$f":"ScoresRSQ!K10","v":""},null,{"$f":"IF(G12=0,2,IF(G12=3,1,0))","v":2},{"$f":"ScoresRSQ!E10","v":0},1,null,null,null,null,null,1]
["SINGLE HOUSEHOLDS","elderly(3)/alienation(5)",{"$f":"IF(G13=0, \"not completed\",IF(G13=1, \"highly probable\",IF(G13=2, \"probable\", IF(G13=3, \"improbable\", IF(G13=4, \"we don't know\", \"I don't know\")))))","v":"not completed"},{"$f":"ScoresRSQ!K4","v":""},null,{"$f":"IF(G13=0,2,IF(G13=3,1,0))","v":2},{"$f":"ScoresRSQ!E4","v":0},1,null,1]
["THE TRAP OF LONELINESS","alienation(2)/health(10)",{"$f":"IF(G14=0, \"not completed\",IF(G14=1, \"highly probable\",IF(G14=2, \"probable\", IF(G14=3, \"improbable\", IF(G14=4, \"we don't know\", \"I don't know\")))))","v":"not completed"},{"$f":"ScoresRSQ!K22","v":""},null,{"$f":"IF(G14=0,2,IF(G14=3,1,0))","v":2},{"$f":"ScoresRSQ!E28","v":0},null,null,1,null,null,null,1]
["COSTS OF DELIVERING HEALTHCARE","health(4)",{"$f":"IF(G15=0, \"not completed\",IF(G15=1, \"highly probable\",IF(G15=2, \"probable\", IF(G15=3, \"improbable\", IF(G15=4, \"we don't know\", \"I don't know\")))))","v":"not completed"},{"$f":"ScoresRSQ!K56","v":""},null,{"$f":"IF(G15=0,2,IF(G15=3,1,0))","v":2},{"$f":"ScoresRSQ!E78","v":0},null,null,null,null,null,null,1]
["WELFARE SYSTEM","integration(1)",{"$f":"IF(G16=0, \"not completed\",IF(G16=1, \"highly probable\",IF(G16=2, \"probable\", IF(G16=3, \"improbable\", IF(G16=4, \"we don't know\", \"I don't know\")))))","v":"not completed"},{"$f":"ScoresRSQ!K58","v":""},null,{"$f":"IF(G16=0,2,IF(G16=3,1,0))","v":2},{"$f":"ScoresRSQ!E87","v":0},null,null,null,null,null,null,null,1]
["SOCIAL WELFARE AND FAMILY SUPPORT","elderly(10)/cohesion(5)",{"$f":"IF(G17=0, \"not completed\",IF(G17=1, \"highly probable\",IF(G17=2, \"probable\", IF(G17=3, \"improbable\", IF(G17=4, \"we don't know\", \"I don't know\")))))","v":"not completed"},{"$f":"ScoresRSQ!K11","v":""},null,{"$f":"IF(G17=0,2,IF(G17=3,1,0))","v":2},{"$f":"ScoresRSQ!E11","v":0},1,1]
["DEMENTIA AND THE ELDERLY","elderly(6)/inequalities(2)/health(6)",{"$f":"IF(G18=0, \"not completed\",IF(G18=1, \"highly probable\",IF(G18=2, \"probable\", IF(G18=3, \"improbable\", IF(G18=4, \"we don't know\", \"I don't know\")))))","v":"not completed"},{"$f":"ScoresRSQ!K7","v":""},null,{"$f":"IF(G18=0,2,IF(G18=3,1,0))","v":2},{"$f":"ScoresRSQ!E7","v":0},1,null,null,1,null,null,1]
["OBESITY","health(2)",{"$f":"IF(G19=0, \"not completed\",IF(G19=1, \"highly probable\",IF(G19=2, \"probable\", IF(G19=3, \"improbable\", IF(G19=4, \"we don't know\", \"I don't know\")))))","v":"not completed"},{"$f":"ScoresRSQ!K55","v":""},null,{"$f":"IF(G19=0,2,IF(G19=3,1,0))","v":2},{"$f":"ScoresRSQ!E76","v":0},null,null,null,null,null,null,1]
["PENSION AGE ","elderly(1)/cohesion(3)/alienation(3)",{"$f":"IF(G20=0, \"not completed\",IF(G20=1, \"highly probable\",IF(G20=2, \"probable\", IF(G20=3, \"improbable\", IF(G20=4, \"we don't know\", \"I don't know\")))))","v":"not completed"},{"$f":"ScoresRSQ!K2","v":""},null,{"$f":"IF(G20=0,2,IF(G20=3,1,0))","v":2},{"$f":"ScoresRSQ!E2","v":0},1,1,1]
["POLLUTION AND PROFESSIONALS AND SKILLED WORKERS","pollution(6)",{"$f":"IF(G21=0, \"not completed\",IF(G21=1, \"highly probable\",IF(G21=2, \"probable\", IF(G21=3, \"improbable\", IF(G21=4, \"we don't know\", \"I don't know\")))))","v":"not completed"},{"$f":"ScoresRSQ!K48","v":""},null,{"$f":"IF(G21=0,2,IF(G21=3,1,0))","v":2},{"$f":"ScoresRSQ!E69","v":0},null,null,null,null,null,1]
["EDUCATION","inequalities(8)",{"$f":"IF(G22=0, \"not completed\",IF(G22=1, \"highly probable\",IF(G22=2, \"probable\", IF(G22=3, \"improbable\", IF(G22=4, \"we don't know\", \"I don't know\")))))","v":"not completed"},{"$f":"ScoresRSQ!K30","v":""},null,{"$f":"IF(G22=0,2,IF(G22=3,1,0))","v":2},{"$f":"ScoresRSQ!E48","v":0},null,null,null,1]
["FARMING AND AIR POLLUTION","pollution(9)",{"$f":"IF(G23=0, \"not completed\",IF(G23=1, \"highly probable\",IF(G23=2, \"probable\", IF(G23=3, \"improbable\", IF(G23=4, \"we don't know\", \"I don't know\")))))","v":"not completed"},{"$f":"ScoresRSQ!K51","v":""},null,{"$f":"IF(G23=0,2,IF(G23=3,1,0))","v":2},{"$f":"ScoresRSQ!E72","v":0},null,null,null,null,null,1]
["POLLUTION AND BUSINESS COMPETETIVENESS","pollution(7)",{"$f":"IF(G24=0, \"not completed\",IF(G24=1, \"highly probable\",IF(G24=2, \"probable\", IF(G24=3, \"improbable\", IF(G24=4, \"we don't know\", \"I don't know\")))))","v":"not completed"},{"$f":"ScoresRSQ!K49","v":""},null,{"$f":"IF(G24=0,2,IF(G24=3,1,0))","v":2},{"$f":"ScoresRSQ!E70","v":0},null,null,null,null,null,1]
["WATER QUALITY","pollution(8)",{"$f":"IF(G25=0, \"not completed\",IF(G25=1, \"highly probable\",IF(G25=2, \"probable\", IF(G25=3, \"improbable\", IF(G25=4, \"we don't know\", \"I don't know\")))))","v":"not completed"},{"$f":"ScoresRSQ!K50","v":""},null,{"$f":"IF(G25=0,2,IF(G25=3,1,0))","v":2},{"$f":"ScoresRSQ!E71","v":0},null,null,null,null,null,1]
["DEMAND FOR TEMPORARY HOUSING","infrastructure(9)",{"$f":"IF(G26=0, \"not completed\",IF(G26=1, \"highly probable\",IF(G26=2, \"probable\", IF(G26=3, \"improbable\", IF(G26=4, \"we don't know\", \"I don't know\")))))","v":"not completed"},{"$f":"ScoresRSQ!K68","v":""},null,{"$f":"IF(G26=0,2,IF(G26=3,1,0))","v":2},{"$f":"ScoresRSQ!E110","v":0},null,null,null,null,null,null,null,null,null,1]
["DRINKING WATER SUPPLIES","flooding(11)/health(12)/infrastructure(7)",{"$f":"IF(G27=0, \"not completed\",IF(G27=1, \"highly probable\",IF(G27=2, \"probable\", IF(G27=3, \"improbable\", IF(G27=4, \"we don't know\", \"I don't know\")))))","v":"not completed"},{"$f":"ScoresRSQ!K41","v":""},null,{"$f":"IF(G27=0,2,IF(G27=3,1,0))","v":2},{"$f":"ScoresRSQ!E61","v":0},null,null,null,null,1,null,1,null,null,1]
["PROGRESSING URBANISATION","cohesion(11)/alienation(1)/inequalities(9)",{"$f":"IF(G28=0, \"not completed\",IF(G28=1, \"highly probable\",IF(G28=2, \"probable\", IF(G28=3, \"improbable\", IF(G28=4, \"we don't know\", \"I don't know\")))))","v":"not completed"},{"$f":"ScoresRSQ!K17","v":""},null,{"$f":"IF(G28=0,2,IF(G28=3,1,0))","v":2},{"$f":"ScoresRSQ!E22","v":0},null,1,1,1]
["INTEGRATION AND SOCIAL COHESION","cohesion(10)/integration(4)",{"$f":"IF(G29=0, \"not completed\",IF(G29=1, \"highly probable\",IF(G29=2, \"probable\", IF(G29=3, \"improbable\", IF(G29=4, \"we don't know\", \"I don't know\")))))","v":"not completed"},{"$f":"ScoresRSQ!K16","v":""},null,{"$f":"IF(G29=0,2,IF(G29=3,1,0))","v":2},{"$f":"ScoresRSQ!E21","v":0},null,1,null,null,null,null,null,1]
["QUALITY OF URBAN GREEN SPACES","flooding(9)",{"$f":"IF(G30=0, \"not completed\",IF(G30=1, \"highly probable\",IF(G30=2, \"probable\", IF(G30=3, \"improbable\", IF(G30=4, \"we don't know\", \"I don't know\")))))","v":"not completed"},{"$f":"ScoresRSQ!K39","v":""},null,{"$f":"IF(G30=0,2,IF(G30=3,1,0))","v":2},{"$f":"ScoresRSQ!E59","v":0},null,null,null,null,1]
["PARTICIPATION IN CIVIL SOCIETY","cohesion(2)/inequalities(1)",{"$f":"IF(G31=0, \"not completed\",IF(G31=1, \"highly probable\",IF(G31=2, \"probable\", IF(G31=3, \"improbable\", IF(G31=4, \"we don't know\", \"I don't know\")))))","v":"not completed"},{"$f":"ScoresRSQ!K13","v":""},null,{"$f":"IF(G31=0,2,IF(G31=3,1,0))","v":2},{"$f":"ScoresRSQ!E13","v":0},null,1,null,1]
["DAMAGE TO INVALUABLE CULTURAL/HISTORICAL ASSETS","pollution(11)/infrastructure(2)",{"$f":"IF(G32=0, \"not completed\",IF(G32=1, \"highly probable\",IF(G32=2, \"probable\", IF(G32=3, \"improbable\", IF(G32=4, \"we don't know\", \"I don't know\")))))","v":"not completed"},{"$f":"ScoresRSQ!K53","v":""},null,{"$f":"IF(G32=0,2,IF(G32=3,1,0))","v":2},{"$f":"ScoresRSQ!E74","v":0},null,null,null,null,null,1,null,null,null,1]
["RADICALISM AND EXTREMISM","integration(5)/unrest(2)",{"$f":"IF(G33=0, \"not completed\",IF(G33=1, \"highly probable\",IF(G33=2, \"probable\", IF(G33=3, \"improbable\", IF(G33=4, \"we don't know\", \"I don't know\")))))","v":"not completed"},{"$f":"ScoresRSQ!K59","v":""},null,{"$f":"IF(G33=0,2,IF(G33=3,1,0))","v":2},{"$f":"ScoresRSQ!E91","v":0},null,null,null,null,null,null,null,1,1]
["COMMUNITIES WITH CONTROLLED ENTRANCES","cohesion(15)/integration(6)",{"$f":"IF(G34=0, \"not completed\",IF(G34=1, \"highly probable\",IF(G34=2, \"probable\", IF(G34=3, \"improbable\", IF(G34=4, \"we don't know\", \"I don't know\")))))","v":"not completed"},{"$f":"ScoresRSQ!K21","v":""},null,{"$f":"IF(G34=0,2,IF(G34=3,1,0))","v":2},{"$f":"ScoresRSQ!E26","v":0},null,1,null,null,null,null,null,1]
["THE TRAP OF FEAR OF CRIME","cohesion(7)/alienation(9)",{"$f":"IF(G35=0, \"not completed\",IF(G35=1, \"highly probable\",IF(G35=2, \"probable\", IF(G35=3, \"improbable\", IF(G35=4, \"we don't know\", \"I don't know\")))))","v":"not completed"},{"$f":"ScoresRSQ!K14","v":""},null,{"$f":"IF(G35=0,2,IF(G35=3,1,0))","v":2},{"$f":"ScoresRSQ!E18","v":0},null,1,1]
["UNEMPLOYMENT","inequalities(3)",{"$f":"IF(G36=0, \"not completed\",IF(G36=1, \"highly probable\",IF(G36=2, \"probable\", IF(G36=3, \"improbable\", IF(G36=4, \"we don't know\", \"I don't know\")))))","v":"not completed"},{"$f":"ScoresRSQ!K26","v":""},null,{"$f":"IF(G36=0,2,IF(G36=3,1,0))","v":2},{"$f":"ScoresRSQ!E43","v":0},null,null,null,1]
["INFORMAL SETTLEMENT IN FLOOD-PRONE AREAS","flooding(7)",{"$f":"IF(G37=0, \"not completed\",IF(G37=1, \"highly probable\",IF(G37=2, \"probable\", IF(G37=3, \"improbable\", IF(G37=4, \"we don't know\", \"I don't know\")))))","v":"not completed"},{"$f":"ScoresRSQ!K37","v":""},null,{"$f":"IF(G37=0,2,IF(G37=3,1,0))","v":2},{"$f":"ScoresRSQ!E57","v":0},null,null,null,null,1]
["COMMUNITY SPACES","cohesion(12)/alienation(11)",{"$f":"IF(G38=0, \"not completed\",IF(G38=1, \"highly probable\",IF(G38=2, \"probable\", IF(G38=3, \"improbable\", IF(G38=4, \"we don't know\", \"I don't know\")))))","v":"not completed"},{"$f":"ScoresRSQ!K18","v":""},null,{"$f":"IF(G38=0,2,IF(G38=3,1,0))","v":2},{"$f":"ScoresRSQ!E23","v":0},null,1,1]
["LACK OF HOME INSURANCE ","flooding(13)/infrastructure(3)",{"$f":"IF(G39=0, \"not completed\",IF(G39=1, \"highly probable\",IF(G39=2, \"probable\", IF(G39=3, \"improbable\", IF(G39=4, \"we don't know\", \"I don't know\")))))","v":"not completed"},{"$f":"ScoresRSQ!K43","v":""},null,{"$f":"IF(G39=0,2,IF(G39=3,1,0))","v":2},{"$f":"ScoresRSQ!E63","v":0},null,null,null,null,1,null,null,null,null,1]
["UNREGULATED MIGRANT WORKERS","inequalities(6)/integration(2)",{"$f":"IF(G40=0, \"not completed\",IF(G40=1, \"highly probable\",IF(G40=2, \"probable\", IF(G40=3, \"improbable\", IF(G40=4, \"we don't know\", \"I don't know\")))))","v":"not completed"},{"$f":"ScoresRSQ!K28","v":""},null,{"$f":"IF(G40=0,2,IF(G40=3,1,0))","v":2},{"$f":"ScoresRSQ!E46","v":0},null,null,null,1,null,null,null,1]
["SKILLED WORKERS AND FLOODING","flooding(4)",{"$f":"IF(G41=0, \"not completed\",IF(G41=1, \"highly probable\",IF(G41=2, \"probable\", IF(G41=3, \"improbable\", IF(G41=4, \"we don't know\", \"I don't know\")))))","v":"not completed"},{"$f":"ScoresRSQ!K34","v":""},null,{"$f":"IF(G41=0,2,IF(G41=3,1,0))","v":2},{"$f":"ScoresRSQ!E54","v":0},null,null,null,null,1]
["WORKERS' RIGHTS BECOME ERODED","alienation(13)/inequalities(5)",{"$f":"IF(G42=0, \"not completed\",IF(G42=1, \"highly probable\",IF(G42=2, \"probable\", IF(G42=3, \"improbable\", IF(G42=4, \"we don't know\", \"I don't know\")))))","v":"not completed"},{"$f":"ScoresRSQ!K25","v":""},null,{"$f":"IF(G42=0,2,IF(G42=3,1,0))","v":2},{"$f":"ScoresRSQ!E39","v":0},null,null,1,1]
["GANG WARFARE","unrest(3)",{"$f":"IF(G43=0, \"not completed\",IF(G43=1, \"highly probable\",IF(G43=2, \"probable\", IF(G43=3, \"improbable\", IF(G43=4, \"we don't know\", \"I don't know\")))))","v":"not completed"},{"$f":"ScoresRSQ!K61","v":""},null,{"$f":"IF(G43=0,2,IF(G43=3,1,0))","v":2},{"$f":"ScoresRSQ!E95","v":0},null,null,null,null,null,null,null,null,1]
["LOOTING OF SHOPS","unrest(4)",{"$f":"IF(G44=0, \"not completed\",IF(G44=1, \"highly probable\",IF(G44=2, \"probable\", IF(G44=3, \"improbable\", IF(G44=4, \"we don't know\", \"I don't know\")))))","v":"not completed"},{"$f":"ScoresRSQ!K62","v":""},null,{"$f":"IF(G44=0,2,IF(G44=3,1,0))","v":2},{"$f":"ScoresRSQ!E96","v":0},null,null,null,null,null,null,null,null,1]
["SEWAGE SYSTEM","flooding(12)/infrastructure(9)",{"$f":"IF(G45=0, \"not completed\",IF(G45=1, \"highly probable\",IF(G45=2, \"probable\", IF(G45=3, \"improbable\", IF(G45=4, \"we don't know\", \"I don't know\")))))","v":"not completed"},{"$f":"ScoresRSQ!K42","v":""},null,{"$f":"IF(G45=0,2,IF(G45=3,1,0))","v":2},{"$f":"ScoresRSQ!E62","v":0},null,null,null,null,1,null,null,null,null,1]
["TRANSPORT CRITICAL INFRASTRUCTURE","unrest(6)/infrastructure(11)",{"$f":"IF(G46=0, \"not completed\",IF(G46=1, \"highly probable\",IF(G46=2, \"probable\", IF(G46=3, \"improbable\", IF(G46=4, \"we don't know\", \"I don't know\")))))","v":"not completed"},{"$f":"ScoresRSQ!K64","v":""},null,{"$f":"IF(G46=0,2,IF(G46=3,1,0))","v":2},{"$f":"ScoresRSQ!E98","v":0},null,null,null,null,null,null,null,null,1,1]
["ISOLATION OF DISADVANTAGED PEOPLE","alienation(6)/inequalities(10)",{"$f":"IF(G47=0, \"not completed\",IF(G47=1, \"highly probable\",IF(G47=2, \"probable\", IF(G47=3, \"improbable\", IF(G47=4, \"we don't know\", \"I don't know\")))))","v":"not completed"},{"$f":"ScoresRSQ!K23","v":""},null,{"$f":"IF(G47=0,2,IF(G47=3,1,0))","v":2},{"$f":"ScoresRSQ!E32","v":0},null,null,1,1]
["TOURISM","unrest(9)",{"$f":"IF(G48=0, \"not completed\",IF(G48=1, \"highly probable\",IF(G48=2, \"probable\", IF(G48=3, \"improbable\", IF(G48=4, \"we don't know\", \"I don't know\")))))","v":"not completed"},{"$f":"ScoresRSQ!K67","v":""},null,{"$f":"IF(G48=0,2,IF(G48=3,1,0))","v":2},{"$f":"ScoresRSQ!E101","v":0},null,null,null,null,null,null,null,null,1]
["MENTAL HEALTH AND LONELINESS","elderly(7)/health(7)",{"$f":"IF(G49=0, \"not completed\",IF(G49=1, \"highly probable\",IF(G49=2, \"probable\", IF(G49=3, \"improbable\", IF(G49=4, \"we don't know\", \"I don't know\")))))","v":"not completed"},{"$f":"ScoresRSQ!K8","v":""},null,{"$f":"IF(G49=0,2,IF(G49=3,1,0))","v":2},{"$f":"ScoresRSQ!E8","v":0},1,null,null,null,null,null,1]
["FAMILY MEMBERS CO-LOCATION","elderly(2)/cohesion(6)/alienation(4)",{"$f":"IF(G50=0, \"not completed\",IF(G50=1, \"highly probable\",IF(G50=2, \"probable\", IF(G50=3, \"improbable\", IF(G50=4, \"we don't know\", \"I don't know\")))))","v":"not completed"},{"$f":"ScoresRSQ!K3","v":""},null,{"$f":"IF(G50=0,2,IF(G50=3,1,0))","v":2},{"$f":"ScoresRSQ!E3","v":0},1,1,1]
["ALCOHOL ABUSE","elderly(8)",{"$f":"IF(G51=0, \"not completed\",IF(G51=1, \"highly probable\",IF(G51=2, \"probable\", IF(G51=3, \"improbable\", IF(G51=4, \"we don't know\", \"I don't know\")))))","v":"not completed"},{"$f":"ScoresRSQ!K9","v":""},null,{"$f":"IF(G51=0,2,IF(G51=3,1,0))","v":2},{"$f":"ScoresRSQ!E9","v":0},1]
["INTEGRATION","cohesion(9)/integration(3)",{"$f":"IF(G52=0, \"not completed\",IF(G52=1, \"highly probable\",IF(G52=2, \"probable\", IF(G52=3, \"improbable\", IF(G52=4, \"we don't know\", \"I don't know\")))))","v":"not completed"},{"$f":"ScoresRSQ!K15","v":""},null,{"$f":"IF(G52=0,2,IF(G52=3,1,0))","v":2},{"$f":"ScoresRSQ!E20","v":0},null,1,null,null,null,null,null,1]
["WORK-RELATED STRESS","inequalities(4)/health(9)",{"$f":"IF(G53=0, \"not completed\",IF(G53=1, \"highly probable\",IF(G53=2, \"probable\", IF(G53=3, \"improbable\", IF(G53=4, \"we don't know\", \"I don't know\")))))","v":"not completed"},{"$f":"ScoresRSQ!K27","v":""},null,{"$f":"IF(G53=0,2,IF(G53=3,1,0))","v":2},{"$f":"ScoresRSQ!E44","v":0},null,null,null,1,null,null,1]
["POLLUTION AND CITIZENS SPENDING TIME OUTDOORS","cohesion(14)/alienation(10)/pollution(5)",{"$f":"IF(G54=0, \"not completed\",IF(G54=1, \"highly probable\",IF(G54=2, \"probable\", IF(G54=3, \"improbable\", IF(G54=4, \"we don't know\", \"I don't know\")))))","v":"not completed"},{"$f":"ScoresRSQ!K20","v":""},null,{"$f":"IF(G54=0,2,IF(G54=3,1,0))","v":2},{"$f":"ScoresRSQ!E25","v":0},null,1,1,null,null,1]
["LOSS OF ELECTRICITY","flooding(5)/infrastructure(4)",{"$f":"IF(G55=0, \"not completed\",IF(G55=1, \"highly probable\",IF(G55=2, \"probable\", IF(G55=3, \"improbable\", IF(G55=4, \"we don't know\", \"I don't know\")))))","v":"not completed"},{"$f":"ScoresRSQ!K35","v":""},null,{"$f":"IF(G55=0,2,IF(G55=3,1,0))","v":2},{"$f":"ScoresRSQ!E55","v":0},null,null,null,null,1,null,null,null,null,1]
["DRUG AND ALCOHOL ABUSE","health(1)",{"$f":"IF(G56=0, \"not completed\",IF(G56=1, \"highly probable\",IF(G56=2, \"probable\", IF(G56=3, \"improbable\", IF(G56=4, \"we don't know\", \"I don't know\")))))","v":"not completed"},{"$f":"ScoresRSQ!K54","v":""},null,{"$f":"IF(G56=0,2,IF(G56=3,1,0))","v":2},{"$f":"ScoresRSQ!E75","v":0},null,null,null,null,null,null,1]
["THE RAMIFICATIONS OF ACID RAINS IN THE CITY","pollution(10)/infrastructure(1)",{"$f":"IF(G57=0, \"not completed\",IF(G57=1, \"highly probable\",IF(G57=2, \"probable\", IF(G57=3, \"improbable\", IF(G57=4, \"we don't know\", \"I don't know\")))))","v":"not completed"},{"$f":"ScoresRSQ!K52","v":""},null,{"$f":"IF(G57=0,2,IF(G57=3,1,0))","v":2},{"$f":"ScoresRSQ!E73","v":0},null,null,null,null,null,1,null,null,null,1]
["THE DISENGAGEMENT OF CITIZENS","cohesion(1)/alienation(14)",{"$f":"IF(G58=0, \"not completed\",IF(G58=1, \"highly probable\",IF(G58=2, \"probable\", IF(G58=3, \"improbable\", IF(G58=4, \"we don't know\", \"I don't know\")))))","v":"not completed"},{"$f":"ScoresRSQ!K12","v":""},null,{"$f":"IF(G58=0,2,IF(G58=3,1,0))","v":2},{"$f":"ScoresRSQ!E12","v":0},null,1,1]
["LESS PRODUCTIVE FARMING LAND","flooding(8)/infrastructure(6)",{"$f":"IF(G59=0, \"not completed\",IF(G59=1, \"highly probable\",IF(G59=2, \"probable\", IF(G59=3, \"improbable\", IF(G59=4, \"we don't know\", \"I don't know\")))))","v":"not completed"},{"$f":"ScoresRSQ!K38","v":""},null,{"$f":"IF(G59=0,2,IF(G59=3,1,0))","v":2},{"$f":"ScoresRSQ!E58","v":0},null,null,null,null,1,null,null,null,null,1]
["RESPIRATORY DISEASE","pollution(3)/health(3)",{"$f":"IF(G60=0, \"not completed\",IF(G60=1, \"highly probable\",IF(G60=2, \"probable\", IF(G60=3, \"improbable\", IF(G60=4, \"we don't know\", \"I don't know\")))))","v":"not completed"},{"$f":"ScoresRSQ!K46","v":""},null,{"$f":"IF(G60=0,2,IF(G60=3,1,0))","v":2},{"$f":"ScoresRSQ!E66","v":0},null,null,null,null,null,1,1]
["LOCAL BUSINESSES AND FLOODING","flooding(6)",{"$f":"IF(G61=0, \"not completed\",IF(G61=1, \"highly probable\",IF(G61=2, \"probable\", IF(G61=3, \"improbable\", IF(G61=4, \"we don't know\", \"I don't know\")))))","v":"not completed"},{"$f":"ScoresRSQ!K36","v":""},null,{"$f":"IF(G61=0,2,IF(G61=3,1,0))","v":2},{"$f":"ScoresRSQ!E56","v":0},null,null,null,null,1]
["FLOODING AND SANITATION","flooding(10)/health(11)",{"$f":"IF(G62=0, \"not completed\",IF(G62=1, \"highly probable\",IF(G62=2, \"probable\", IF(G62=3, \"improbable\", IF(G62=4, \"we don't know\", \"I don't know\")))))","v":"not completed"},{"$f":"ScoresRSQ!K40","v":""},null,{"$f":"IF(G62=0,2,IF(G62=3,1,0))","v":2},{"$f":"ScoresRSQ!E60","v":0},null,null,null,null,1,null,1]
["TRUST","alienation(8)",{"$f":"IF(G63=0, \"not completed\",IF(G63=1, \"highly probable\",IF(G63=2, \"probable\", IF(G63=3, \"improbable\", IF(G63=4, \"we don't know\", \"I don't know\")))))","v":"not completed"},{"$f":"ScoresRSQ!K24","v":""},null,{"$f":"IF(G63=0,2,IF(G63=3,1,0))","v":2},{"$f":"ScoresRSQ!E34","v":0},null,null,1]
["FLOODING AND HOMELESSNESS","flooding(3)",{"$f":"IF(G64=0, \"not completed\",IF(G64=1, \"highly probable\",IF(G64=2, \"probable\", IF(G64=3, \"improbable\", IF(G64=4, \"we don't know\", \"I don't know\")))))","v":"not completed"},{"$f":"ScoresRSQ!K33","v":""},null,{"$f":"IF(G64=0,2,IF(G64=3,1,0))","v":2},{"$f":"ScoresRSQ!E53","v":0},null,null,null,null,1]
["ACCESS TO SOCIAL ACTIVITIES","cohesion(13)/alienation(12)",{"$f":"IF(G65=0, \"not completed\",IF(G65=1, \"highly probable\",IF(G65=2, \"probable\", IF(G65=3, \"improbable\", IF(G65=4, \"we don't know\", \"I don't know\")))))","v":"not completed"},{"$f":"ScoresRSQ!K19","v":""},null,{"$f":"IF(G65=0,2,IF(G65=3,1,0))","v":2},{"$f":"ScoresRSQ!E24","v":0},null,1,1]
["HEALTH INEQUALITIES","health(5)",{"$f":"IF(G66=0, \"not completed\",IF(G66=1, \"highly probable\",IF(G66=2, \"probable\", IF(G66=3, \"improbable\", IF(G66=4, \"we don't know\", \"I don't know\")))))","v":"not completed"},{"$f":"ScoresRSQ!K57","v":""},null,{"$f":"IF(G66=0,2,IF(G66=3,1,0))","v":2},{"$f":"ScoresRSQ!E79","v":0},null,null,null,null,null,null,1]
["EMERGENCY SERVICES","unrest(5)",{"$f":"IF(G67=0, \"not completed\",IF(G67=1, \"highly probable\",IF(G67=2, \"probable\", IF(G67=3, \"improbable\", IF(G67=4, \"we don't know\", \"I don't know\")))))","v":"not completed"},{"$f":"ScoresRSQ!K63","v":""},null,{"$f":"IF(G67=0,2,IF(G67=3,1,0))","v":2},{"$f":"ScoresRSQ!E97","v":0},null,null,null,null,null,null,null,null,1]
["BUILDINGS, SHOPS AND TRANSPORT","unrest(7)/infrastructure(12)",{"$f":"IF(G68=0, \"not completed\",IF(G68=1, \"highly probable\",IF(G68=2, \"probable\", IF(G68=3, \"improbable\", IF(G68=4, \"we don't know\", \"I don't know\")))))","v":"not completed"},{"$f":"ScoresRSQ!K65","v":""},null,{"$f":"IF(G68=0,2,IF(G68=3,1,0))","v":2},{"$f":"ScoresRSQ!E99","v":0},null,null,null,null,null,null,null,null,1,1]
["CRIME IN THE CITY","unrest(8)",{"$f":"IF(G69=0, \"not completed\",IF(G69=1, \"highly probable\",IF(G69=2, \"probable\", IF(G69=3, \"improbable\", IF(G69=4, \"we don't know\", \"I don't know\")))))","v":"not completed"},{"$f":"ScoresRSQ!K66","v":""},null,{"$f":"IF(G69=0,2,IF(G69=3,1,0))","v":2},{"$f":"ScoresRSQ!E100","v":0},null,null,null,null,null,null,null,null,1]
["LOCAL AUTHORITIES' BUDGET UNDER PRESSURE","infrastructure(10)",{"$f":"IF(G70=0, \"not completed\",IF(G70=1, \"highly probable\",IF(G70=2, \"probable\", IF(G70=3, \"improbable\", IF(G70=4, \"we don't know\", \"I don't know\")))))","v":"not completed"},{"$f":"ScoresRSQ!K69","v":""},null,{"$f":"IF(G70=0,2,IF(G70=3,1,0))","v":2},{"$f":"ScoresRSQ!E111","v":0},null,null,null,null,null,null,null,null,null,1]
["CITIZENS' FINANCIAL DEBT","inequalities(7)",{"$f":"IF(G71=0, \"not completed\",IF(G71=1, \"highly probable\",IF(G71=2, \"probable\", IF(G71=3, \"improbable\", IF(G71=4, \"we don't know\", \"I don't know\")))))","v":"not completed"},{"$f":"ScoresRSQ!K29","v":""},null,{"$f":"IF(G71=0,2,IF(G71=3,1,0))","v":2},{"$f":"ScoresRSQ!E47","v":0},null,null,null,1]
["CIVIC DISORDER AND THE MEDIA","unrest(1)",{"$f":"IF(G72=0, \"not completed\",IF(G72=1, \"highly probable\",IF(G72=2, \"probable\", IF(G72=3, \"improbable\", IF(G72=4, \"we don't know\", \"I don't know\")))))","v":"not completed"},{"$f":"ScoresRSQ!K60","v":""},null,{"$f":"IF(G72=0,2,IF(G72=3,1,0))","v":2},{"$f":"ScoresRSQ!E93","v":0},null,null,null,null,null,null,null,null,1]

{"sheet":"Answers","index":15,"n_rows":156,"n_cols":5,"rows_kept":156,"cut":false,"hidden":true,"merged":[]}
["LIST OF YOUR ANSWERS TO THE RSQ"]
[]
["ELDERLY POPULATION"]
["SCENARIOS","ANSWER","PRIORITY"]
["S2: PENSION AGE ",{"$f":"IF(D5=5,\"we don't know\",IF(D5=1,\"likely\",IF(D5=2,\"possibly\",IF(D5=3,\"unlikely\",IF(D5=4,\"I don't know\",\"no answer\")))))","v":"no answer"},{"$f":"ScoresRSQ!K2","v":""},{"$f":"ScoresRSQ!E2","v":0},{"$f":"IF(C5=\"not completed\",5,IF(C5=\"topic disabled\",4,IF(C5=\"topic attempted\",3,IF(C5=\"scenario attempted\",2,IF(C5=\"unlikely\",1,0)))))","v":0}]
["S3: FAMILY MEMBERS CO-LOCATION","no answer",{"$f":"ScoresRSQ!K3","v":""},{"$f":"ScoresRSQ!E3","v":0},0]
["S4: SINGLE HOUSEHOLDS","no answer",{"$f":"ScoresRSQ!K4","v":""},{"$f":"ScoresRSQ!E4","v":0},0]
["S5: AGED CITIZENS' FEAR OF CRIME IN THE CITY","no answer",{"$f":"ScoresRSQ!K5","v":""},{"$f":"ScoresRSQ!E5","v":0},0]
["S6: DIGITAL MARGINALISATION","no answer",{"$f":"ScoresRSQ!K6","v":""},{"$f":"ScoresRSQ!E6","v":0},0]
["S7: DEMENTIA AND THE ELDERLY","no answer",{"$f":"ScoresRSQ!K7","v":""},{"$f":"ScoresRSQ!E7","v":0},0]
["S8: MENTAL HEALTH AND LONELINESS","no answer",{"$f":"ScoresRSQ!K8","v":""},{"$f":"ScoresRSQ!E8","v":0},0]
["S9: ALCOHOL ABUSE","no answer",{"$f":"ScoresRSQ!K9","v":""},{"$f":"ScoresRSQ!E9","v":0},0]
["S10: HEALTHCARE UNDER PRESSURE","no answer",{"$f":"ScoresRSQ!K10","v":""},{"$f":"ScoresRSQ!E10","v":0},0]
["S11: SOCIAL WELFARE AND FAMILY SUPPORT","no answer",{"$f":"ScoresRSQ!K11","v":""},{"$f":"ScoresRSQ!E11","v":0}]
[]
["SOCIAL COHESION"]
["SCENARIOS","ANSWER","PRIORITY"]
["S16: COMMUNITIES WITH CONTROLLED ENTRANCES",{"$f":"IF(D18=5,\"we don't know\",IF(D18=1,\"likely\",IF(D18=2,\"possibly\",IF(D18=3,\"unlikely\",IF(D18=4,\"I don't know\",\"no answer\")))))","v":"no answer"},null,{"$f":"ScoresRSQ!E26","v":0},{"$f":"IF(C18=\"not completed\",5,IF(C18=\"topic disabled\",4,IF(C18=\"topic attempted\",3,IF(C18=\"scenario attempted\",2,IF(C18=\"unlikely\",1,0)))))","v":0}]
["S10: INTEGRATION","no answer",null,{"$f":"ScoresRSQ!E20","v":0},0]
["S8: THE TRAP OF FEAR OF CRIME","no answer",null,{"$f":"ScoresRSQ!E18","v":0},0]
["S13: COMMUNITY SPACES","no answer",null,{"$f":"ScoresRSQ!E23","v":0},0]
["S2: THE DISENGAGEMENT OF CITIZENS","no answer",null,{"$f":"ScoresRSQ!E12","v":0},0]
["S11: INTEGRATION AND SOCIAL COHESION","no answer",null,{"$f":"ScoresRSQ!E21","v":0},0]
["S3: PARTICIPATION IN CIVIL SOCIETY","no answer",null,{"$f":"ScoresRSQ!E13","v":0},0]
["S4: PENSION AGE","no answer",null,{"$f":"ScoresRSQ!E14","v":0},0]
["S7: FAMILY MEMBERS CO-LOCATION","no answer",null,{"$f":"ScoresRSQ!E17","v":0},0]
["S12: PROGRESSING URBANISATION","no answer",null,{"$f":"ScoresRSQ!E22","v":0},0]
["S9: AGED CITIZENS' FEAR OF CRIME IN THE CITY","no answer",null,{"$f":"ScoresRSQ!E19","v":0},0]
["S14: ACCESS TO SOCIAL ACTIVITIES","no answer",null,{"$f":"ScoresRSQ!E24","v":0},0]
["S15: POLLUTION AND CITIZENS SPENDING TIME OUTDOORS","no answer",null,{"$f":"ScoresRSQ!E25","v":0},0]
["S6: SOCIAL WELFARE AND FAMILY SUPPORT","no answer",null,{"$f":"ScoresRSQ!E16","v":0},0]
["S5: DIGITAL MARGINALISATION","no answer",null,{"$f":"ScoresRSQ!E15","v":0},0]
["S1: REDUCED SOCIAL COHESION","no answer",null,{"$f":"ScoresRSQ!E117","v":0},0]
[]
["SOCIAL ALIENATION"]
["SCENARIOS","ANSWER","PRIORITY"]
["S11: POLLUTION AND CITIZENS SPENDING TIME OUTDOORS",{"$f":"IF(D37=5,\"we don't know\",IF(D37=1,\"likely\",IF(D37=2,\"possibly\",IF(D37=3,\"unlikely\",IF(D37=4,\"I don't know\",\"no answer\")))))","v":"no answer"},null,{"$f":"ScoresRSQ!E36","v":0},{"$f":"IF(C37=\"not completed\",5,IF(C37=\"topic disabled\",4,IF(C37=\"topic attempted\",3,IF(C37=\"scenario attempted\",2,IF(C37=\"unlikely\",1,0)))))","v":0}]
["S10: THE TRAP OF FEAR OF CRIME","no answer",null,{"$f":"ScoresRSQ!E35","v":0},0]
["S9: TRUST","no answer",null,{"$f":"ScoresRSQ!E34","v":0},0]
["S12: COMMUNITY SPACES","no answer",null,{"$f":"ScoresRSQ!E37","v":0},0]
["S15: THE DISENGAGEMENT OF CITIZENS","no answer",null,{"$f":"ScoresRSQ!E40","v":0},0]
["S3: THE TRAP OF LONELINESS","no answer",null,{"$f":"ScoresRSQ!E28","v":0},0]
["S6: SINGLE HOUSEHOLDS","no answer",null,{"$f":"ScoresRSQ!E31","v":0},0]
["S4: PENSION AGE","no answer",null,{"$f":"ScoresRSQ!E29","v":0},0]
["S5: FAMILY MEMBERS CO-LOCATION","no answer",null,{"$f":"ScoresRSQ!E30","v":0},0]
["S2: PROGRESSING URBANISATION","no answer",null,{"$f":"ScoresRSQ!E27","v":0},0]
["S13: ACCESS TO SOCIAL ACTIVITIES","no answer",null,{"$f":"ScoresRSQ!E38","v":0},0]
["S8: DIGITAL MARGINALISATION","no answer",null,{"$f":"ScoresRSQ!E33","v":0},0]
["S7: ISOLATION OF DISADVANTAGED PEOPLE","no answer",null,{"$f":"ScoresRSQ!E32","v":0},0]
["S14: WORKERS' RIGHTS BECOME ERODED","no answer",null,{"$f":"ScoresRSQ!E39","v":0},0]
["S1: SOCIAL ALIENATION","no answer",null,{"$f":"ScoresRSQ!E118","v":0},0]
[]
["SOCIAL INEQUALITIES"]
["SCENARIOS","ANSWER","PRIORITY"]
["S12: AIR QUALITY INEQUALITIES",{"$f":"IF(D55=5,\"we don't know\",IF(D55=1,\"likely\",IF(D55=2,\"possibly\",IF(D55=3,\"unlikely\",IF(D55=4,\"I don't know\",\"no answer\")))))","v":{"$error":"#REF!"}},null,{"$f":"ScoresRSQ!#REF!","v":{"$error":"#REF!"}},{"$f":"IF(C55=\"not completed\",5,IF(C55=\"topic disabled\",4,IF(C55=\"topic attempted\",3,IF(C55=\"scenario attempted\",2,IF(C55=\"unlikely\",1,0)))))","v":0}]
["S3: DEMENTIA AND THE ELDERLY",{"$f":"IF(D56=5,\"we don't know\",IF(D56=1,\"likely\",IF(D56=2,\"possibly\",IF(D56=3,\"unlikely\",IF(D56=4,\"I don't know\",\"no answer\")))))","v":"no answer"},null,{"$f":"ScoresRSQ!E42","v":0},0]
["S7: UNREGULATED MIGRANT WORKERS","no answer",null,{"$f":"ScoresRSQ!E46","v":0},0]
["S10: PROGRESSING URBANISATION","no answer",null,{"$f":"ScoresRSQ!E49","v":0},0]
["S2: PARTICIPATION IN CIVIL SOCIETY","no answer",null,{"$f":"ScoresRSQ!E41","v":0},0]
["S11: ISOLATION OF DISADVANTAGED PEOPLE","no answer",null,{"$f":"ScoresRSQ!E50","v":0},0]
["S6: WORKERS' RIGHTS BECOME ERODED","no answer",null,{"$f":"ScoresRSQ!E45","v":0},0]
["S1: RISING INEQUALITIES","no answer",null,{"$f":"ScoresRSQ!E119","v":0},0]
["S4: UNEMPLOYMENT","no answer",null,{"$f":"ScoresRSQ!E43","v":0},0]
["S5: WORK-RELATED STRESS","no answer",null,{"$f":"ScoresRSQ!E44","v":0},0]
["S8: CITIZENS' FINANCIAL DEBT","no answer",null,{"$f":"ScoresRSQ!E47","v":0},0]
["S9: EDUCATION","no answer",null,{"$f":"ScoresRSQ!E48","v":0},0]
[]
["CLIMATE CHANGE - FLOODING"]
["SCENARIOS","ANSWER","PRIORITY"]
["S5: SKILLED WORKERS AND FLOODING",{"$f":"IF(D70=5,\"we don't know\",IF(D70=1,\"likely\",IF(D70=2,\"possibly\",IF(D70=3,\"unlikely\",IF(D70=4,\"I don't know\",\"no answer\")))))","v":"no answer"},null,{"$f":"ScoresRSQ!E54","v":0},{"$f":"IF(C70=\"not completed\",5,IF(C70=\"topic disabled\",4,IF(C70=\"topic attempted\",3,IF(C70=\"scenario attempted\",2,IF(C70=\"unlikely\",1,0)))))","v":0}]
["S9: LESS PRODUCTIVE FARMING LAND","no answer",null,{"$f":"ScoresRSQ!E58","v":0},0]
["S13: SEWAGE SYSTEM","no answer",null,{"$f":"ScoresRSQ!E62","v":0},0]
["S2: DRAINAGE SYSTEMS","no answer",null,{"$f":"ScoresRSQ!E51","v":0},0]
["S10: QUALITY OF URBAN GREEN SPACES","no answer",null,{"$f":"ScoresRSQ!E59","v":0},0]
["S8: INFORMAL SETTLEMENT IN FLOOD-PRONE AREAS","no answer",null,{"$f":"ScoresRSQ!E57","v":0},0]
["S12: DRINKING WATER SUPPLIES","no answer",null,{"$f":"ScoresRSQ!E61","v":0},0]
["S14: CITIZENS SUFFER FROM LACK OF HOME INSURANCE TO SAVE THEIR ASSETS","no answer",null,{"$f":"ScoresRSQ!E63","v":0},0]
["S6: LOSS OF ELECTRICITY","no answer",null,{"$f":"ScoresRSQ!E55","v":0},0]
["S4: FLOODING AND HOMELESSNESS","no answer",null,{"$f":"ScoresRSQ!E53","v":0},0]
["S3: FLOODING AND THE EMERGENCY SERVICES","no answer",null,{"$f":"ScoresRSQ!E52","v":0},0]
["S7: LOCAL BUSINESSES AND FLOODING","no answer",null,{"$f":"ScoresRSQ!E56","v":0},0]
["S11: FLOODING AND SANITATION","no answer",null,{"$f":"ScoresRSQ!E60","v":0},0]
["S1: FLOODING","no answer",null,{"$f":"ScoresRSQ!E120","v":0},0]
[]
["CLIMATE CHANGE - AIR POLLUTION"]
["SCENARIOS","ANSWER","PRIORITY"]
["S5: TRAFFIC DENSITY AND AIR POLLUTION",{"$f":"IF(D87=5,\"we don't know\",IF(D87=1,\"likely\",IF(D87=2,\"possibly\",IF(D87=3,\"unlikely\",IF(D87=4,\"I don't know\",\"no answer\")))))","v":"no answer"},null,{"$f":"ScoresRSQ!E67","v":0},{"$f":"IF(C87=\"not completed\",5,IF(C87=\"topic disabled\",4,IF(C87=\"topic attempted\",3,IF(C87=\"scenario attempted\",2,IF(C87=\"unlikely\",1,0)))))","v":0}]
["S9: AIR QUALITY INEQUALITIES","no answer",null,{"$f":"ScoresRSQ!E71","v":0},0]
["S2: COLDER WINTERS AND CLIMATE CHANGE","no answer",null,{"$f":"ScoresRSQ!E64","v":0},0]
["S11: FARMING AND AIR POLLUTION","no answer",null,{"$f":"ScoresRSQ!E73","v":0},0]
["S10: WATER QUALITY","no answer",null,{"$f":"ScoresRSQ!E72","v":0},0]
["S13: DAMAGE TO INVALUABLE CULTURAL/HISTORICAL ASSETS",{"$error":"#REF!"},null,{"$f":"ScoresRSQ!#REF!","v":{"$error":"#REF!"}},0]
["S8: POLLUTION AND BUSINESS COMPETETIVENESS","no answer",null,{"$f":"ScoresRSQ!E70","v":0},0]
["S6: POLLUTION AND CITIZENS SPENDING TIME OUTDOORS","no answer",null,{"$f":"ScoresRSQ!E68","v":0},0]
["S12: THE RAMIFICATIONS OF ACID RAINS IN THE CITY","no answer",null,{"$f":"ScoresRSQ!E74","v":0},0]
["S4: CITIZENS SUFFER FROM RESPIRATORY DISEASES","no answer",null,{"$f":"ScoresRSQ!E66","v":0},0]
["S3: HOTTER, DRIER SUMMERS AND CLIMATE CHANGE","no answer",null,{"$f":"ScoresRSQ!E65","v":0},0]
["S7: POLLUTION AND PROFESSIONALS AND SKILLED WORKERS","no answer",null,{"$f":"ScoresRSQ!E69","v":0},0]
["S1: AIR POLLUTION",{"$error":"#REF!"},null,{"$f":"ScoresRSQ!#REF!","v":{"$error":"#REF!"}},0]
[]
["HEALTH"]
["SCENARIOS","ANSWER","PRIORITY"]
["S8: MENTAL HEALTH AND LONELINESS",{"$f":"IF(D103=5,\"we don't know\",IF(D103=1,\"likely\",IF(D103=2,\"possibly\",IF(D103=3,\"unlikely\",IF(D103=4,\"I don't know\",\"no answer\")))))","v":"no answer"},null,{"$f":"ScoresRSQ!E81","v":0},{"$f":"IF(C103=\"not completed\",5,IF(C103=\"topic disabled\",4,IF(C103=\"topic attempted\",3,IF(C103=\"scenario attempted\",2,IF(C103=\"unlikely\",1,0)))))","v":0}]
["S11: THE TRAP OF LONELINESS","no answer",null,{"$f":"ScoresRSQ!E84","v":0},0]
["S7: DEMENTIA AND THE ELDERLY","no answer",null,{"$f":"ScoresRSQ!E80","v":0},0]
["S13: DRINKING WATER SUPPLIES","no answer",null,{"$f":"ScoresRSQ!E86","v":0},0]
["S9: HEALTHCARE UNDER PRESSURE","no answer",null,{"$f":"ScoresRSQ!E82","v":0},0]
["S4: CITIZENS SUFFER FROM RESPIRATORY DISEASES","no answer",null,{"$f":"ScoresRSQ!E77","v":0},0]
["S12: FLOODING AND SANITATION","no answer",null,{"$f":"ScoresRSQ!E85","v":0},0]
["S1: CITY'S HEALTH",{"$error":"#REF!"},null,{"$f":"ScoresRSQ!#REF!","v":{"$error":"#REF!"}},0]
["S2: DRUG AND ALCOHOL ABUSE","no answer",null,{"$f":"ScoresRSQ!E75","v":0},0]
["S3: OBESITY","no answer",null,{"$f":"ScoresRSQ!E76","v":0},0]
["S5: COSTS OF DELIVERING HEALTHCARE","no answer",null,{"$f":"ScoresRSQ!E78","v":0},0]
["S6: HEALTH INEQUALITIES","no answer",null,{"$f":"ScoresRSQ!E79","v":0},0]
["S10: WORK-RELATED STRESS","no answer",null,{"$f":"ScoresRSQ!E83","v":0},0]
[]
["COMMUNITY INTEGRATION"]
["SCENARIOS","ANSWER","PRIORITY"]
["S7: COMMUNITIES WITH CONTROLLED ENTRANCES",{"$f":"IF(D119=5,\"we don't know\",IF(D119=1,\"likely\",IF(D119=2,\"possibly\",IF(D119=3,\"unlikely\",IF(D119=4,\"I don't know\",\"no answer\")))))","v":"no answer"},null,{"$f":"ScoresRSQ!E92","v":0},{"$f":"IF(C119=\"not completed\",5,IF(C119=\"topic disabled\",4,IF(C119=\"topic attempted\",3,IF(C119=\"scenario attempted\",2,IF(C119=\"unlikely\",1,0)))))","v":0}]
["S5: INTEGRATION AND SOCIAL COHESION","no answer",null,{"$f":"ScoresRSQ!E90","v":0},0]
["S4: INTEGRATION","no answer",null,{"$f":"ScoresRSQ!E89","v":0},0]
["S3: UNREGULATED MIGRANT WORKERS","no answer",null,{"$f":"ScoresRSQ!E88","v":0},0]
["S2: WELFARE SYSTEM","no answer",null,{"$f":"ScoresRSQ!E87","v":0},0]
["S6: RADICALISM AND EXTREMISM","no answer",null,{"$f":"ScoresRSQ!E91","v":0},0]
["S1: INCOMING PEOPLE",{"$error":"#REF!"},null,{"$f":"ScoresRSQ!#REF!","v":{"$error":"#REF!"}},0]
[]
["PUBLIC UNREST"]
["SCENARIOS","ANSWER","PRIORITY"]
["S4: GANG WARFARE",{"$f":"IF(D129=5,\"we don't know\",IF(D129=1,\"likely\",IF(D129=2,\"possibly\",IF(D129=3,\"unlikely\",IF(D129=4,\"I don't know\",\"no answer\")))))","v":"no answer"},null,{"$f":"ScoresRSQ!E95","v":0},{"$f":"IF(C129=\"not completed\",5,IF(C129=\"topic disabled\",4,IF(C129=\"topic attempted\",3,IF(C129=\"scenario attempted\",2,IF(C129=\"unlikely\",1,0)))))","v":0}]
["S2: CIVIC DISORDER AND THE MEDIA","no answer",null,{"$f":"ScoresRSQ!E93","v":0},0]
["S6: EMERGENCY SERVICES","no answer",null,{"$f":"ScoresRSQ!E97","v":0},0]
["S9: CRIME IN THE CITY","no answer",null,{"$f":"ScoresRSQ!E100","v":0},0]
["S10: TOURISM","no answer",null,{"$f":"ScoresRSQ!E101","v":0},0]
["S5: LOOTING OF SHOPS","no answer",null,{"$f":"ScoresRSQ!E96","v":0},0]
["S3: RADICALISM AND EXTREMISM","no answer",null,{"$f":"ScoresRSQ!E94","v":0},0]
["S7: PUBLIC UNREST IN THE STREETS DISRUPTS THE TRANSPORT CRITICAL INFRASTRUCTURE","no answer",null,{"$f":"ScoresRSQ!E98","v":0},0]
["S8: BUILDINGS, SHOPS AND TRANSPORT","no answer",null,{"$f":"ScoresRSQ!E99","v":0},0]
["S1: PUBLIC UNREST IN THE STREETS",{"$error":"#REF!"},null,{"$f":"ScoresRSQ!#REF!","v":{"$error":"#REF!"}},0]
[null,null,null,null,{"$f":"IF(C158=\"not completed\",4,IF(C158=\"scenario disabled\",3,IF(C158=\"unlikely\",2,IF(C158=\"scenario attempted\",1,0))))","v":0}]
["INFRASTRUCTURE",null,null,null,{"$f":"IF(C159=\"not completed\",4,IF(C159=\"scenario disabled\",3,IF(C159=\"unlikely\",2,IF(C159=\"scenario attempted\",1,0))))","v":0}]
["SCENARIOS","ANSWER","PRIORITY"]
["S8: LESS PRODUCTIVE FARMING LAND",{"$f":"IF(D142=5,\"we don't know\",IF(D142=1,\"likely\",IF(D142=2,\"possibly\",IF(D142=3,\"unlikely\",IF(D142=4,\"I don't know\",\"no answer\")))))","v":"no answer"},null,{"$f":"ScoresRSQ!E107","v":0},{"$f":"IF(C142=\"not completed\",5,IF(C142=\"topic disabled\",4,IF(C142=\"topic attempted\",3,IF(C142=\"scenario attempted\",2,IF(C142=\"unlikely\",1,0)))))","v":0}]
["S10: SEWAGE SYSTEM","no answer",null,{"$f":"ScoresRSQ!E109","v":0},0]
["S3: DAMAGE TO INVALUABLE CULTURAL/HISTORICAL ASSETS","no answer",null,{"$f":"ScoresRSQ!E103","v":0},0]
["S2: THE RAMIFICATIONS OF ACID RAINS IN THE CITY","no answer",null,{"$f":"ScoresRSQ!E102","v":0},0]
["S5: CITIZENS SUFFER FROM LACK OF HOME INSURANCE TO SAVE THEIR ASSETS","no answer",null,{"$f":"ScoresRSQ!E104","v":0},0]
["S9: DRINKING WATER SUPPLIES","no answer",null,{"$f":"ScoresRSQ!E108","v":0},0]
["S6: LOSS OF ELECTRICITY","no answer",null,{"$f":"ScoresRSQ!E105","v":0},0]
["S7: FLOODING AND THE EMERGENCY SERVICES","no answer",null,{"$f":"ScoresRSQ!E106","v":0},0]
["S14: PUBLIC UNREST IN THE STREETS DISRUPTS THE TRANSPORT CRITICAL INFRASTRUCTURE","no answer",null,{"$f":"ScoresRSQ!E112","v":0},0]
["S15: BUILDINGS, SHOPS AND TRANSPORT","no answer",null,{"$f":"ScoresRSQ!E113","v":0},0]
["S1: AIR POLLUTION",{"$error":"#REF!"},null,{"$f":"ScoresRSQ!#REF!","v":{"$error":"#REF!"}},0]
["S13: PUBLIC UNREST IN THE STREETS",{"$error":"#REF!"},null,{"$f":"ScoresRSQ!#REF!","v":{"$error":"#REF!"}},0]
["S4: FLOODING",{"$error":"#REF!"},null,{"$f":"ScoresRSQ!#REF!","v":{"$error":"#REF!"}},0]
["S11: DEMAND FOR TEMPORARY HOUSING","no answer",null,{"$f":"ScoresRSQ!E110","v":0},0]
["S12: LOCAL AUTHORITIES' BUDGET UNDER PRESSURE","no answer",null,{"$f":"ScoresRSQ!E111","v":0},0]